Cogmind - Beta 16 @@@ ROGUE MODE // 2025.11.08 @ 20:04:45 // Winter2019/RPGLIKE Player: Rentaro Result: Destroyed 0b10! Performance ------------- Evolutions (9) 4500 Regions Visited (36) 7200 Robots Destroyed (1580) 7900 Value Destroyed (75639) 75639 Prototype IDs (133) 2660 Alien Tech Used (10) 2000 Bonus (69635) 69635 TOTAL SCORE: 169534 Bonus ------- Triggered High Security 1500 Triggered Max Security 3000 High Alert Combat Kills 23994 Follower Combat Kills 2214 Destroyed Unchained 2000 Aligned with FarCom 300 Met Data Miner 300 MAIN.C Attacked Warlord 500 Warlord Defense Kills 20384 Used Core Reset Matrix 3000 Scanned by Researcher 500 Met Sigix 2000 Activated Exoskeleton 3000 Escaped with Sigix 5000 Win 3000 Friendly Fire -1057 Cogmind --------- Core Integrity 774/800 Matter 396/500 Energy 242/250 System Corruption 1% Temperature Cool (20) +ITN Movement Flying (20) +NEM 1 Location Tau Ceti IV Orbit Parts ------- > --- POWER (2) -------- Micro Fission Core Micro Fission Core > --- PROPULSION (5) --- Electron Diverter Electron Diverter Improved Diametric Drive Improved Diametric Drive Improved Diametric Drive > --- UTILITY (9) ------ Experimental Signal Interpreter Advanced Target Analyzer Experimental Core Analyzer Particle Accelerator Advanced Kinecellerator (fused) Advanced Weapon Cycler Advanced Phase Shifter Force Field > --- WEAPON (6) ------- Cooled Plasma Cannon Enhanced Autogun Enhanced Autogun Enhanced Autogun Enhanced Autogun Enhanced Autogun (fused) > --- INVENTORY (5) ---- Protomatter-78 Improved Datajack Sigix Containment Pod Peak State ------------ > --- POWER ------------ Micro Fission Core Micro Fission Core > --- PROPULSION ------- Electron Diverter Electron Diverter Improved Diametric Drive Improved Diametric Drive Improved Diametric Drive > --- UTILITY ---------- Experimental Signal Interpreter Advanced Target Analyzer Experimental Core Analyzer Advanced Kinecellerator Experimental Reaction Control System Improved Phase Shifter Force Field Advanced Hacking Suite High-powered Tractor Beam > --- WEAPON ----------- Enhanced Autogun Enhanced Autogun Enhanced Autogun Enhanced Autogun Sigix Terminator > --- INVENTORY -------- Particle Accelerator Cooled Plasma Cannon Enhanced Autogun Improved Datajack [Rating: 168] Favorites ----------- Power Micro Fission Core Engine Light Ion Engine Power Core Micro Fission Core Reactor Particle Reactor Propulsion Cesium-ion Thruster Treads DW-4LL's Griptreads Leg Carbon-fiber Leg Wheel Compact Wheel Hover Unit Cooled Antigrav System Flight Unit Cesium-ion Thruster Utility Hacking Suite Device Structural Scanner Storage Superbattery Processor Improved Signal Interpreter Hackware Hacking Suite Weapon Enhanced Autogun Energy Gun Small Laser Energy Cannon Cooled Plasma Cannon Ballistic Gun Enhanced Autogun Ballistic Cannon AWS/Autocannon Launcher Rocket Launcher Special Weapon Improved Remote Datajack Special Melee Weapon Improved Datajack Build | -11 -10 -10 -9 -9 -9 -8 -8 -8 -8 -6 -6 -6 -6 -6 -6 -5 -5 -5 -5 -5 -5 -5 -4 -4 -4 -4 -4 -4 -4 -3 -3 -3 -3 -2 -1 -1 ------- Run | Yrd Mat Min Mat Min Exi Min Mat Sto Rec Fac Was Fac Low Low Dat Pro Fac Was Fac Upp Upp War Pro Fac Was Fac Upp Upp Zhi Pro Res Qua Sec Res Acc Com Slots Evolved 18 | 4 1 . 4 1 . . 2 . 1 . . 2 . . . . . . 1 . . 1 . . . . . . . . 1 . . . . . Power 1 | . . . . . . . 1 . . . . . . . . . . . . . . . . . . . . . . . . . . . . . Propulsion 4 | 1 . . 1 . . . 1 . . . . . . . . . . . . . . 1 . . . . . . . . . . . . . . Utility 8 | 1 1 . 2 1 . . . . . . . 1 . . . . . . 1 . . . . . . . . . . . 1 . . . . . Weapon 5 | 2 . . 1 . . . . . 1 . . 1 . . . . . . . . . . . . . . . . . . . . . . . . Parts Attached 199 | 6 9 2 17 . 6 1 14 3 4 8 1 21 1 3 2 . 15 . 14 . 3 26 . 2 . 7 1 . 2 . 11 12 3 1 . 4 Power 19 | 1 . . 1 . 1 . 3 . 1 4 . 2 . . . . 2 . . . . 1 . . . 1 . . . . . 2 . . . . Engine 8 | 1 . . 1 . 1 . 3 . 1 . . 1 . . . . . . . . . . . . . . . . . . . . . . . . Core 5 | . . . . . . . . . . 3 . . . . . . 2 . . . . . . . . . . . . . . . . . . . Reactor 6 | . . . . . . . . . . 1 . 1 . . . . . . . . . 1 . . . 1 . . . . . 2 . . . . Propulsion 44 | 2 3 . 3 . 3 . 5 . 1 . . 5 . 1 . . 4 . 2 . 1 6 . . . 1 . . 1 . 5 . 1 . . . Treads 1 | . . . . . . . . . . . . 1 . . . . . . . . . . . . . . . . . . . . . . . . Leg 7 | 2 . . . . 3 . . . . . . . . . . . . . . . . 1 . . . . . . 1 . . . . . . . Wheel 1 | . 1 . . . . . . . . . . . . . . . . . . . . . . . . . . . . . . . . . . . Hover 1 | . . . . . . . . . . . . . . . . . . . . . . 1 . . . . . . . . . . . . . . Flight 34 | . 2 . 3 . . . 5 . 1 . . 4 . 1 . . 4 . 2 . 1 4 . . . 1 . . . . 5 . 1 . . . Utility 99 | . 3 1 2 . 2 . 2 1 1 2 1 10 1 2 2 . 8 . 11 . 2 18 . 2 . 4 1 . 1 . 6 9 2 1 . 4 Device 59 | . 1 1 1 . 1 . 1 1 1 2 1 6 1 1 2 . 3 . 4 . 2 9 . 1 . 4 1 . 1 . 3 6 1 1 . 3 Storage 1 | . . . . . 1 . . . . . . . . . . . . . . . . . . . . . . . . . . . . . . . Processor 26 | . 1 . . . . . 1 . . . . 4 . 1 . . 3 . 4 . . 9 . 1 . . . . . . . 1 1 . . . Hackware 13 | . 1 . 1 . . . . . . . . . . . . . 2 . 3 . . . . . . . . . . . 3 2 . . . 1 Protection . | . . . . . . . . . . . . . . . . . . . . . . . . . . . . . . . . . . . . . Artifact . | . . . . . . . . . . . . . . . . . . . . . . . . . . . . . . . . . . . . . Weapon 37 | 3 3 1 11 . . 1 4 2 1 2 . 4 . . . . 1 . 1 . . 1 . . . 1 . . . . . 1 . . . . Energy Gun 8 | 2 . . 2 . . . . 1 . 1 . 1 . . . . . . . . . 1 . . . . . . . . . . . . . . Energy Cannon 3 | . . . 1 . . . . . . 1 . . . . . . 1 . . . . . . . . . . . . . . . . . . . Ballistic Gun 18 | 1 . 1 8 . . . 4 . 1 . . 2 . . . . . . . . . . . . . 1 . . . . . . . . . . Ballistic Cannon 1 | . . . . . . 1 . . . . . . . . . . . . . . . . . . . . . . . . . . . . . . Launcher 3 | . 2 . . . . . . . . . . . . . . . . . . . . . . . . . . . . . . 1 . . . . Special Weapon 1 | . . . . . . . . . . . . 1 . . . . . . . . . . . . . . . . . . . . . . . . Impact Weapon . | . . . . . . . . . . . . . . . . . . . . . . . . . . . . . . . . . . . . . Slashing Weapon . | . . . . . . . . . . . . . . . . . . . . . . . . . . . . . . . . . . . . . Piercing Weapon . | . . . . . . . . . . . . . . . . . . . . . . . . . . . . . . . . . . . . . Special Melee Weapon 3 | . 1 . . . . . . 1 . . . . . . . . . . 1 . . . . . . . . . . . . . . . . . Unidentified Prototypes 52 | . . 1 3 . . . 2 . 1 4 1 7 . . 1 . 3 . . 1 . 12 . . . 3 . . 4 . 2 4 3 . . . Parts Lost 8 | . . . . . 2 . . . . . . . . 2 . . 2 . . . . . . . . . . . . . . 1 . . . 1 Power . | . . . . . . . . . . . . . . . . . . . . . . . . . . . . . . . . . . . . . Propulsion 2 | . . . . . 2 . . . . . . . . . . . . . . . . . . . . . . . . . . . . . . . Utility 6 | . . . . . . . . . . . . . . 2 . . 2 . . . . . . . . . . . . . . 1 . . . 1 Weapon . | . . . . . . . . . . . . . . . . . . . . . . . . . . . . . . . . . . . . . Highest Loss Streak 2 | . . . . . 1 . . . . . . . . 2 . . 1 . . . . . . . . . . . . . . 1 . . . 1 To Critical Strikes . | . . . . . . . . . . . . . . . . . . . . . . . . . . . . . . . . . . . . . Average Backups 2 | . . 1 1 2 2 2 2 2 2 2 2 2 2 2 2 2 2 2 2 2 2 2 2 2 3 3 4 4 4 4 4 4 1 1 1 1 Power . | . . . . . . . . . . . . . . . . . . . . . . . . . . . . . . . . . . . . . Propulsion . | . . . . . . . . . . . . . . . . . . . . . . . . . . . . . . . . . . . . . Utility 1 | . . . . 1 1 1 . 1 2 2 2 1 1 1 1 1 1 1 1 1 . 1 1 1 2 2 2 2 2 2 2 1 . . . . Weapon . | . . . . 1 1 1 . . . . . . 1 1 1 1 . 1 . . . . 1 . . 1 1 1 1 1 1 1 . . . . Tool/Special . | . . . . . . . . . . . . . . . . . . . . . . . . . . . . . . . . . . . . . Unused Backups 7 | . . . . . 2 . 2 . . . . 1 . . . . . . . . . 2 . . . . . . . . . . . . . . Power 1 | . . . . . . . 1 . . . . . . . . . . . . . . . . . . . . . . . . . . . . . Propulsion . | . . . . . . . . . . . . . . . . . . . . . . . . . . . . . . . . . . . . . Utility 3 | . . . . . 1 . . . . . . . . . . . . . . . . 2 . . . . . . . . . . . . . . Weapon 2 | . . . . . 1 . . . . . . 1 . . . . . . . . . . . . . . . . . . . . . . . . Tool/Special 1 | . . . . . . . 1 . . . . . . . . . . . . . . . . . . . . . . . . . . . . . Average Slot Usage (%) 95 | . 93 99 95 92 95 92 92 100 96 90 82 92 93 86 90 91 92 94 97 99 97 95 100 100 100 99 100 100 99 99 99 99 99 99 100 97 Engine 3 | . 11 11 7 7 7 7 8 12 11 4 . . . . . . . . . . . . . . . . . . . . . . . . . . Core 5 | . . . . . . . . . . 4 5 5 5 5 5 5 6 10 10 10 10 9 9 9 9 9 9 9 9 9 9 8 9 9 9 9 Leg 2 | . 4 . . . 9 21 12 . . . . . . . . . . . . . . . . . . . . . . . . . . . . . Flight 19 | . 19 22 22 21 10 . 10 25 23 20 17 21 21 21 21 21 21 21 20 20 19 20 23 23 23 23 23 23 23 23 22 22 22 22 22 22 Device 16 | . 10 11 11 14 14 13 15 18 13 10 11 12 15 17 22 23 21 21 16 14 13 17 23 23 23 22 23 23 22 22 18 20 26 26 27 24 Storage 1 | . . . . . 5 7 5 . . . . 4 5 1 . . . . . . . . . . . . . . . . . . . . . . Processor 9 | . 1 11 7 7 7 7 3 6 5 5 5 9 15 9 10 10 10 10 16 20 20 15 14 14 14 14 14 14 14 14 13 13 13 13 13 13 Hackware 6 | . 6 11 12 14 14 14 12 12 11 11 11 6 . . . . 1 . 4 5 5 2 . . . . . . . . 8 5 . . . . Ballistic Gun 24 | . 11 21 27 28 27 17 20 24 27 28 29 26 26 26 26 26 26 26 25 25 25 24 23 23 23 26 28 27 26 28 24 22 22 22 22 21 Peak Build Rating 168 | 6 12 20 27 26 51 70 72 48 64 77 72 96 82 81 75 75 91 91 109 106 106 165 127 130 125 131 128 128 129 128 150 168 160 154 150 154 Average Rating 80 | 4 8 12 19 26 37 60 57 42 53 63 64 72 80 68 67 70 76 91 98 105 97 104 127 124 125 126 127 126 125 127 135 150 155 150 150 149 On Entrance 87 | . 6 12 13 26 26 51 70 44 45 62 63 64 81 81 66 75 66 91 91 106 106 96 127 127 125 125 126 128 126 127 126 147 157 148 150 150 Avg Prop Armor Cover (%) 2 | . . . . . . . 1 1 6 5 . . . . . . . . . . . . . . . . . . 4 . . . . . . . Naked Turns . | . . . . . . . . . . . . . . . . . . . . . . . . . . . . . . . . . . . . . Heaviest Build 83 | 7 10 10 19 18 30 81 83 22 28 32 24 40 39 39 38 38 39 39 43 42 42 76 44 51 45 46 46 46 46 46 50 53 54 53 53 54 Greatest Support 85 | 25 25 13 22 22 55 55 55 36 37 37 32 85 39 39 39 39 39 39 43 43 43 49 49 50 50 50 50 50 50 50 54 52 52 57 57 57 Greatest Overweight (x) 2 | . . . 1 . 1 1 2 . 1 1 . 1 . . . . . . 1 . 1 2 . 1 . . . . 1 . . 1 1 . . . Average Overweight (x) . | . . . . . . . . . . . . . . . . . . . . . . . . . . . . . . . . . . . . . Largest Inventory Capacity 5 | 1 2 2 2 4 4 4 4 4 4 4 4 4 4 4 4 4 4 4 4 4 4 4 4 4 4 4 4 4 4 4 4 5 5 5 5 5 Average Capacity 3 | 1 1 2 2 3 4 4 4 4 4 4 4 4 4 4 4 4 4 4 4 4 4 4 4 4 4 4 4 4 4 4 4 4 5 5 5 5 Most Carried 5 | . 2 2 2 4 4 4 4 4 4 4 4 4 4 4 4 4 4 4 4 3 3 4 4 4 4 4 4 4 4 4 4 5 5 5 5 5 Average Carried 3 | . . 1 1 3 3 3 3 3 3 2 3 3 3 4 3 3 4 3 3 2 2 3 4 3 4 3 4 4 3 4 3 4 4 4 5 4 Final Capacity 5 | 1 2 2 2 4 4 4 4 4 4 4 4 4 4 4 4 4 4 4 4 4 4 4 4 4 4 4 4 4 4 4 4 5 5 5 5 5 Final Carried 5 | . 1 2 2 4 4 4 4 4 3 2 4 4 4 4 3 4 4 4 4 2 3 4 4 4 4 4 4 4 4 4 4 5 5 5 5 4 Scrap Engine Consumption 230 | . . . . . . . . . 37 174 9 10 . . . . . . . . . . . . . . . . . . . . . . . . Constructs Created 10 | . . . . . . . . . 2 6 . 2 . . . . . . . . . . . . . . . . . . . . . . . . Constructs Modified 13 | . . . . . . . . . 3 8 . 2 . . . . . . . . . . . . . . . . . . . . . . . . Class Distribution -------------------- 46% | Hacker-Scout 14% | Scavenger-Scout 12% | Scavenger-Gunner 10% | Scavenger-Skirmisher 7% | Scavenger-Sprinter Dominant Class ---------------- Gunner | -10/Materials Scavenger-Gunner | -10/Mines Scavenger-Gunner | -9/Materials Scavenger-Gunner | -9/Mines Scavenger-Gunner | -9/Exiles Scavenger-Skirmisher | -8/Mines Scavenger-Skirmisher | -8/Materials Scavenger-Sprinter | -8/Storage Scavenger-Scout | -8/Recycling Hacker-Scout | -6/Factory Hacker-Scout | -6/Waste Hacker-Scout | -6/Factory Hacker-Scout | -6/Lower Caves Hacker-Scout | -6/Lower Caves Hacker-Scout | -6/Data Miner Hacker-Scout | -5/Proximity Caves Hacker-Scout | -5/Factory Hacker-Scout | -5/Waste Hacker-Scout | -5/Factory Hacker-Scout | -5/Upper Caves Hacker-Scout | -5/Upper Caves Scavenger-Sprinter | -5/Warlord Scavenger-Sprinter | -4/Proximity Caves Scavenger-Scout | -4/Factory Scavenger-Scout | -4/Waste Scavenger-Scout | -4/Factory Scavenger-Scout | -4/Upper Caves Scavenger-Scout | -4/Upper Caves Scavenger-Scout | -4/Zhirov Scavenger-Scout | -3/Proximity Caves Hacker-Scout | -3/Research Hacker-Scout | -3/Quarantine Hacker-Scout | -3/Section 7 Hacker-Scout | -2/Research Hacker-Scout | -1/Access Hacker-Scout | -1/Command Resources | -11 -10 -10 -9 -9 -9 -8 -8 -8 -8 -6 -6 -6 -6 -6 -6 -5 -5 -5 -5 -5 -5 -5 -4 -4 -4 -4 -4 -4 -4 -3 -3 -3 -3 -2 -1 -1 ----------- Run | Yrd Mat Min Mat Min Exi Min Mat Sto Rec Fac Was Fac Low Low Dat Pro Fac Was Fac Upp Upp War Pro Fac Was Fac Upp Upp Zhi Pro Res Qua Sec Res Acc Com Matter Collected 53204 | 260 447 316 1384 314 1640 173 1969 808 883 2564 40 7409 390 848 363 577 2064 276 4205 600 700 5763 581 1466 . 6244 222 729 . 1006 2869 1251 510 1139 380 2814 Remotely 10192 | . . . . . . . . . . . . . . . . . . . . . . . . . . 5548 222 729 . 1006 82 435 . 533 380 1257 Salvage Created 74207 | . 518 59 1749 240 2377 345 2906 1155 1110 3591 116 9543 872 586 401 895 3132 . 5804 851 749 8941 1205 2240 . 8869 271 1223 . 1397 5360 1039 577 789 845 4452 Parts 3828 | . 33 12 123 29 148 12 176 61 63 152 2 495 46 59 19 30 129 . 219 37 56 495 62 128 . 454 13 47 . 80 238 62 54 60 26 208 Haulers Intercepted 56 | . 2 . 6 . . . 5 3 . 4 . 9 . . . . 6 . 6 . . . . . . 6 . . . . 8 1 . . . . Recyclers Shooed 10 | . 1 . . . . 1 . . . 1 . 3 . . . . . . 1 . . . . . . 1 . . . . 2 . . . . . Parts Field Recycled . | . . . . . . . . . . . . . . . . . . . . . . . . . . . . . . . . . . . . . Retrieved Matter . | . . . . . . . . . . . . . . . . . . . . . . . . . . . . . . . . . . . . . Parts Self-Destructed 410 | . . . . . . . . . . . . . 46 56 . 29 . . . 37 49 . 61 . . . 8 44 . 80 . . . . . . Prevented 6 | . . . . . . . . . . . . . . 1 . . . . . . . . . . . . . 5 . . . . . . . . Parts Restored . | . . . . . . . . . . . . . . . . . . . . . . . . . . . . . . . . . . . . . Kills | -11 -10 -10 -9 -9 -9 -8 -8 -8 -8 -6 -6 -6 -6 -6 -6 -5 -5 -5 -5 -5 -5 -5 -4 -4 -4 -4 -4 -4 -4 -3 -3 -3 -3 -2 -1 -1 ------- Run | Yrd Mat Min Mat Min Exi Min Mat Sto Rec Fac Was Fac Low Low Dat Pro Fac Was Fac Upp Upp War Pro Fac Was Fac Upp Upp Zhi Pro Res Qua Sec Res Acc Com Combat Hostiles Destroyed 1255 | . 10 15 34 17 68 3 50 20 6 46 . 155 15 21 4 13 42 . 88 20 19 174 20 52 . 126 8 22 . 30 53 26 8 14 9 67 Guns 1202 | . 7 5 31 17 60 2 40 20 6 46 . 154 15 21 4 13 42 . 85 20 19 174 20 51 . 125 8 22 . 30 53 14 8 14 9 67 Cannons 12 | . . . . . . . 9 . . . . . . . . . . . 2 . . . . 1 . . . . . . . . . . . . AOE 41 | . 3 10 3 . 8 1 1 . . . . 1 . . . . . . 1 . . . . . . 1 . . . . . 12 . . . . Classes Destroyed 36 | . 9 1 3 1 3 . 1 . 2 1 . 5 . 2 . . . . . . . 4 . . . 1 . . . . . 3 . . . . Worker 49 | . 1 1 5 . . . 11 . . 2 . 9 . . . . 3 . 4 . . . . 2 . 5 . . . . 3 1 . 2 . . Builder 39 | . 1 . 2 . . . 8 . 3 2 . 7 . . . . 3 . 1 . . . . . . 5 . . . . 3 2 2 . . . Tunneler 8 | . 1 . 1 . . 1 . . . . . 3 . . . . . . 2 . . . . . . . . . . . . . . . . . Hauler 56 | . 2 . 6 . . . 5 3 . 4 . 9 . . . . 6 . 6 . . . . . . 6 . . . . 8 1 . . . . Recycler 47 | . 2 . 1 . . 3 4 1 11 4 . 6 . . . . 1 . 3 . . . . . . 4 . . . . 6 . . 1 . . Carrier 2 | . . . . . . . . . . . . . . . . . . . . . . . . . . . . . . . . 2 . . . . Minesweeper 4 | . . . . . . . . . . . . . . 1 . . . . . . 1 . 1 . . . . . . 1 . . . . . . Mechanic 15 | . 1 . . . . . 1 . . 1 . 5 . . . . . . 1 . . 3 . . . 1 . . . . . 1 . . . 1 Operator 19 | . . . 2 . . . 2 . . 1 . 2 . . . . 2 . 3 . . . . 2 . 1 . . . . 2 2 . . . . Drone 29 | . . . . . . . . . . . . 1 . . . . . . 17 . . . 2 8 . 1 . . . . . . . . . . Turret 20 | . . . . . . . . . . . . . . . . . . . . . . . . . . 19 . . . . 1 . . . . . Watcher 77 | . 3 . 5 . . . 5 2 . 5 . 7 . . . . 10 . 7 . . . . 6 . 11 . . . . 8 3 4 1 . . Swarmer 204 | . 6 3 15 7 2 . 8 3 . 6 . 7 1 5 . . 9 . 18 6 7 23 2 20 . 8 4 5 . 18 8 4 . 2 . 7 Cutter 14 | . . . . . . . . . . 2 . 5 . . . . . . . . . . . . . . . . . . . . 3 . . 4 Saboteur 25 | . . . . . . . . . . . . 5 . . . . . . . . . 16 . . . 1 . . . . . . . 1 . 2 Grunt 460 | . 4 2 9 8 30 2 30 9 . 19 . 63 7 10 . 5 18 . 25 6 6 48 9 11 . 58 . 10 . 8 18 15 1 2 6 21 Brawler 42 | . . . 1 . 5 . 1 1 . 1 . 8 3 . . 1 . . 1 . . 12 2 1 . 3 . . . . . . . . . 2 Duelist 39 | . . . . 2 2 1 1 1 . 3 . 6 . . . 1 . . . 5 . 6 . . . 6 . 1 . . . 1 . . 1 2 Protector 23 | . . . . . . . . . . . . 6 . . . . . . . . . 7 . . . 7 . . . . . . . . . 3 Researcher 1 | . . . . . . . . . . . . . . . . . . . . . . . . . . . . . . . . 1 . . . . Sentry 103 | . . . 9 . . . 8 5 3 7 . 11 1 2 . . 5 . 9 2 1 . 3 6 . 12 . 3 . 1 5 . . 8 . 2 Demolisher 9 | . . . . . 1 . . . . . . . . . . . . . . . . 7 . . . . . . . . 1 . . . . . Specialist 6 | . . . . . . . . . . . . 2 . . . . . . . . . 3 . . . 1 . . . . . . . . . . Hunter 114 | . . . . . 17 . 1 . . 3 . 20 3 2 . 4 3 . 6 . . 12 . 2 . 17 . . . 2 8 . 1 . 2 11 Programmer 98 | . . . . . 11 . . . . 4 . 17 . . . 2 5 . 11 . 2 11 2 2 . 8 . 2 . . 12 5 1 1 . 2 Heavy 7 | . . . . . . . 1 . . 1 . 2 . . . . . . 1 . . . . 1 . 1 . . . . . . . . . . Behemoth 14 | . . . . . . . . . . . . 1 . . . . . . . 1 1 1 1 1 . 2 . 1 . 1 1 . . . . 3 Cetus Guard 1 | . . . . . . . . . . . . . . . . . 1 . . . . . . . . . . . . . . . . . . . Enhanced Grunt 4 | . . . . . . . . . . . . . . . 4 . . . . . . . . . . . . . . . . . . . . . Investigator 1 | . . . . . . . . . . . . . . . . . . . . . . . . . . . . . . . . . . . . 1 Striker 15 | . . . . . . . . . . . . . . . . . . . . . . 12 . . . 1 . . . . . . . . . 2 Executioner 19 | . . . . . . . . . . . . . . . . . . . . . . 12 . . . . . . . . . . 2 . . 5 Alpha 7 2 | . . . . . . . . . . . . . . . . . . . . . . . . . . . . . . . . 1 . . . 1 Scientist 2 | . . . . . . . . . 2 . . . . . . . . . . . . . . . . . . . . . . . . . . . Scrapper 3 | . . . . . . . . . 3 . . . . . . . . . . . . . . . . . . . . . . . . . . . Tinkerer 5 | . . . . . . . . . . . . . . . . . . . . . . 5 . . . . . . . . . . . . . . Master Thief 4 | . . . . . . . . . . . . . . 2 . . . . . . 2 . . . . . . . . . . . . . . . Assembled 10 | . . 10 . . . . . . . . . . . . . . . . . . . . . . . . . . . . . . . . . . Surgeon 1 | . . . . . . . . . . . . . . . . . . . . . . 1 . . . . . . . . . . . . . . Wasp 3 | . . . . . . . . . . . . . . . . . . . . . . . . . . . 3 . . . . . . . . . Thug 2 | . . . . . . . . . . . . . . . . . . . . . . 1 . . . . 1 . . . . . . . . . Savage 1 | . . . . . . . . . . . . . . . . . . . . . . 1 . . . . . . . . . . . . . . Marauder 1 | . . . . . . . . . . . . . . . . . . . . . . 1 . . . . . . . . . . . . . . Mutant 1 | . . . . . . . . . . . . . . . . . . . . . . 1 . . . . . . . . . . . . . . Best Kill Streak 53 | . 3 10 13 4 18 3 6 10 9 8 . 25 9 12 4 9 13 . 23 15 6 53 13 13 . 27 4 10 . 9 20 19 5 11 7 15 Combat Bots Only 53 | . 2 10 10 4 18 3 5 5 3 6 . 23 9 11 4 9 13 . 19 15 6 53 13 12 . 20 4 10 . 9 16 12 3 5 7 15 Max Kills in Single Turn 19 | . 2 3 3 1 3 2 2 2 2 2 . 9 3 3 1 1 2 . 2 2 2 3 2 3 . 4 2 2 . 3 2 19 2 2 2 3 Gunslinging 3 | . . . 1 . 2 1 1 1 . 1 . 1 2 2 . . 1 . 1 1 1 2 1 2 . 3 1 1 . 2 1 1 1 1 1 1 Exploded 12 | . 1 3 3 . 2 1 1 . . . . 1 . . . . . . 1 . . . . . . 1 . . . . . 12 . . . . Melee . | . . . . . . . . . . . . . . . . . . . . . . . . . . . . . . . . . . . . . Uniques/NPCs Destroyed 3 | . . . . . . . . 1 . . . 1 . . . . 1 . . . . . . . . . . . . . . . . . . . 01-MTF (-8/Storage) DW-4LL (-6/Factory) CL-0N3 (-5/Factory) Combat | -11 -10 -10 -9 -9 -9 -8 -8 -8 -8 -6 -6 -6 -6 -6 -6 -5 -5 -5 -5 -5 -5 -5 -4 -4 -4 -4 -4 -4 -4 -3 -3 -3 -3 -2 -1 -1 -------- Run | Yrd Mat Min Mat Min Exi Min Mat Sto Rec Fac Was Fac Low Low Dat Pro Fac Was Fac Upp Upp War Pro Fac Was Fac Upp Upp Zhi Pro Res Qua Sec Res Acc Com Hostile Shots Fired 3644 | . 42 28 83 20 315 . 54 51 13 139 . 475 12 92 25 34 93 . 234 16 51 468 32 165 . 364 9 25 . 61 87 81 165 47 84 279 Missed 1977 | . 16 10 36 11 112 . 16 16 5 61 . 214 7 44 13 11 47 . 85 6 21 298 22 118 . 256 8 12 . 41 73 46 135 21 52 164 Hits 1667 | . 26 18 47 9 203 . 38 35 8 78 . 261 5 48 12 23 46 . 149 10 30 170 10 47 . 108 1 13 . 20 14 35 30 26 32 115 Melee 20 | . . . . . . . . . . 2 . 1 . 4 . . . . . . 4 4 . 1 . 1 . . . . . . . . . 3 Projectile 1647 | . 26 18 47 9 203 . 38 35 8 76 . 260 5 44 12 23 46 . 149 10 26 166 10 46 . 107 1 13 . 20 14 35 30 26 32 112 AOE 27 | . . 3 . . 2 . . . . . . 3 . . . . . . 2 . . 9 . 2 . . . . . . . . 1 . . 5 Critical Strikes 95 | . 1 . 2 . 3 . 4 4 1 3 . 8 . 1 . . 2 . 28 . 4 7 2 4 . 8 . . . 2 . 2 1 . 4 4 Actively Blocked 46 | . . . . . . . . 4 . . . 8 . 1 . . 2 . 28 . 2 . . . . . . . . . . 1 . . . . Part Disruptions 17 | . . . . . 1 . . 7 . . . 1 . . 1 . . . . . . 6 . . . 1 . . . . . . . . . . Damage Taken 23280 | . 338 549 502 53 2188 . 603 445 113 1144 . 3268 37 399 387 209 418 . 1801 541 272 2906 86 1156 . 1464 18 255 . 379 133 423 405 433 554 1801 Core 18559 | . 287 446 399 39 1737 . 474 346 86 919 . 2593 27 305 305 163 326 . 1434 432 206 2346 68 972 . 1160 14 204 . 297 99 333 317 347 442 1436 Absorbed by Shields 7000 | . . . 3 21 658 . 143 158 42 . . 810 41 191 79 88 341 . 861 96 182 987 91 95 . 667 . 49 . 31 144 181 181 153 114 593 Redirected to Core 15774 | . 152 368 336 35 1443 . 434 309 86 740 . 2263 27 294 305 137 288 . 1211 422 206 1910 59 667 . 995 14 190 . 297 99 288 277 300 379 1243 Ignored by Resistances 3430 | . . . . . . . . . . . . 111 16 121 90 74 129 . 410 39 83 578 34 226 . 356 4 62 . 86 36 113 97 119 127 519 Regen/Repaired (Parts) 19 | . . . . . . . . . . 19 . . . . . . . . . . . . . . . . . . . . . . . . . . Core Remaining (%) 93 | 100 . 61 . . . 100 . . 100 . . . . . . 100 . . . . . . 100 . . . . . . 100 . . 81 100 . 96 Volleys Fired 2792 | . 103 34 150 22 97 14 109 51 43 118 1 357 19 39 19 29 116 3 213 31 32 289 29 111 . 238 7 29 . 35 122 63 48 40 30 151 Largest 6 | . 3 2 4 4 4 4 4 4 5 5 5 6 5 5 5 5 5 1 6 5 5 5 5 6 . 6 6 6 . 6 6 6 6 6 6 5 Hottest 300 | . 100 40 100 100 100 100 100 100 125 125 125 150 125 125 125 125 125 7 160 125 125 300 125 160 . 160 150 150 . 150 150 160 230 160 160 125 Shots Fired 12390 | . 213 56 352 88 348 34 437 184 184 590 5 1730 96 194 85 141 535 3 989 147 160 1346 144 467 . 1377 41 172 . 207 653 237 148 197 107 723 Gun 12030 | . 173 44 285 88 339 34 417 184 184 590 5 1724 96 194 84 140 524 . 945 145 160 1324 144 440 . 1373 41 172 . 207 646 206 121 190 95 716 Cannon 200 | . . . . . . . 20 . . . . . . . . . 3 . 32 2 . 22 . 27 . 4 . . . . 7 30 27 7 12 7 Launcher 129 | . 40 12 67 . 9 . . . . . . . . . . . . . . . . . . . . . . . . . . 1 . . . . Special 31 | . . . . . . . . . . . . 6 . . 1 1 8 3 12 . . . . . . . . . . . . . . . . . Kinetic 11928 | . 57 44 285 88 339 34 437 182 184 590 5 1722 96 194 84 140 524 . 945 145 160 1322 144 440 . 1373 41 172 . 207 646 206 121 190 95 716 Thermal 236 | . 53 . . . . . . . . . . . . . . . 3 . 32 2 . 24 . 27 . 4 . . . . 7 31 27 7 12 7 Explosive 128 | . 40 12 67 . 9 . . . . . . . . . . . . . . . . . . . . . . . . . . . . . . . Electromagnetic 65 | . 63 . . . . . . 2 . . . . . . . . . . . . . . . . . . . . . . . . . . . . Impact 2 | . . . . . . . . . . . . 2 . . . . . . . . . . . . . . . . . . . . . . . . Robot Hit Streak 76 | . 8 10 36 16 44 56 76 22 51 45 10 61 15 33 33 34 41 26 41 32 55 76 36 72 . 56 21 27 . 22 73 41 12 30 31 55 Robot Miss Streak 8 | . 4 4 3 3 3 . 2 2 2 4 . 4 2 2 2 2 3 . 8 1 6 3 2 6 . 4 3 2 . 3 3 4 3 3 2 5 Penetration Max . | . . . . . . . . . . . . . . . . . . . . . . . . . . . . . . . . . . . . . Secondary Targets 457 | . 2 . 6 2 29 1 9 3 1 13 . 56 4 9 2 6 15 . 24 7 8 82 8 26 . 57 3 7 . 15 9 3 2 6 3 39 Max Gunslinging Chain 3 | . 1 . 1 1 3 1 1 1 1 1 . 2 2 2 1 1 2 . 1 1 1 3 1 3 . 3 2 1 . 2 1 1 1 2 1 2 Autonomous 20 | . . . . . . . 20 . . . . . . . . . . . . . . . . . . . . . . . . . . . . . Shots Hit Robots 8890 | . 77 30 195 45 283 12 292 136 91 437 2 1304 68 148 73 105 390 3 657 110 120 1092 101 341 . 993 18 121 11 142 443 151 71 152 74 602 Core Hits 3878 | . 29 27 106 21 135 10 126 50 33 169 1 564 35 58 30 44 196 . 258 47 48 477 48 139 . 462 11 48 . 74 204 65 35 55 30 243 Critical Kills 199 | . . . . . 1 . . 1 . 1 . 27 4 1 . . 9 . 14 2 4 27 4 8 . 41 1 7 . 5 9 6 3 5 4 15 Critical Parts Destroyed 302 | . 1 . 1 . 2 . 2 2 . 6 . 39 5 5 . 4 17 . 31 5 2 27 5 15 . 47 1 3 . 8 24 11 3 4 6 26 Critical Strikes 552 | . 1 . 1 . 3 . 3 3 . 7 . 68 9 6 . 5 28 . 45 7 7 65 9 27 . 91 2 13 . 17 35 19 6 15 10 50 Destroy 551 | . 1 . 1 . 3 . 2 3 . 7 . 68 9 6 . 5 28 . 45 7 7 65 9 27 . 91 2 13 . 17 35 19 6 15 10 50 Blast 1 | . . . . . . . 1 . . . . . . . . . . . . . . . . . . . . . . . . . . . . . Melee Attacks 72 | . 8 . . . . . . 1 7 . . . . . . . . . 6 . . 1 4 2 . . . . 12 . 7 16 4 2 . 2 Impact . | . . . . . . . . . . . . . . . . . . . . . . . . . . . . . . . . . . . . . Slashing . | . . . . . . . . . . . . . . . . . . . . . . . . . . . . . . . . . . . . . Piercing . | . . . . . . . . . . . . . . . . . . . . . . . . . . . . . . . . . . . . . Sneak Attacks 39 | . 7 . . . . . . 1 . . . . . . . . . . 3 . . 1 3 2 . . . . . . 7 12 1 2 . . Combat Hostiles 1 | . . . . . . . . . . . . . . . . . . . . . . . . . . . . . . . . 1 . . . . Follow-up Attacks . | . . . . . . . . . . . . . . . . . . . . . . . . . . . . . . . . . . . . . Damage Inflicted 204506 | . 1208 994 2235 863 5442 465 6534 2346 1476 7736 47 24048 1182 2604 1328 1830 7118 . 13270 2091 2283 24276 2549 8926 . 24377 499 3134 . 3397 11352 19546 1494 3742 1682 14432 Guns 179944 | . 688 222 1784 769 4455 204 4710 2346 1476 7736 47 23140 1182 2604 1328 1830 6920 . 12612 2091 2283 24276 2549 8051 . 24049 499 3134 . 3397 11352 2966 1494 3636 1682 14432 Cannons 2506 | . . . . . . . 1658 . . . . . . . . . . . 235 . . . . 414 . 37 . . . . . 56 . 106 . . Explosions 21973 | . 520 772 451 94 987 243 101 . . . . 908 . . . . 198 . 423 . . . . 461 . 291 . . . . . 16524 . . . . Melee . | . . . . . . . . . . . . . . . . . . . . . . . . . . . . . . . . . . . . . Ramming 83 | . . . . . . 18 65 . . . . . . . . . . . . . . . . . . . . . . . . . . . . . Kinetic 181086 | . 182 222 1784 769 4455 204 6368 2346 1476 7736 47 23130 1182 2604 1328 1830 6920 . 12612 2091 2283 24276 2549 8051 . 24049 499 3134 . 3397 11352 2966 1494 3636 1682 14432 Thermal 20417 | . 375 42 . 94 . 243 101 . . . . 908 . . . . 198 . 623 . . . . 875 . 272 . . . . . 16580 . 106 . . Explosive 2502 | . 278 730 451 . 987 . . . . . . . . . . . . . . . . . . . . 56 . . . . . . . . . . Electromagnetic 408 | . 373 . . . . . . . . . . . . . . . . . 35 . . . . . . . . . . . . . . . . . Impact 10 | . . . . . . . . . . . . 10 . . . . . . . . . . . . . . . . . . . . . . . . Slashing . | . . . . . . . . . . . . . . . . . . . . . . . . . . . . . . . . . . . . . Piercing . | . . . . . . . . . . . . . . . . . . . . . . . . . . . . . . . . . . . . . Highest Corruption 7 | . 1 1 . . 3 3 1 6 6 . . 2 1 1 1 1 3 3 5 . . 2 2 . . 7 7 7 7 7 1 2 3 . . 1 Average Corruption 3 | . 1 1 . . 2 3 1 2 6 . . 1 1 1 1 1 2 3 3 . . 1 2 . . 4 7 7 7 7 1 1 2 . . 1 Corruption Purged 8 | . . . . . . . . . . . . 2 . . . . . . 5 . . . . . . . . . . . 1 . . . . . Corruption Blocked 2 | . . . . . . . . . . . . . . . . . . . 1 . 1 . . . . . . . . . . . . . . . Effects 253 | . . 2 . . 13 16 14 8 45 . . 2 2 4 2 5 6 1 25 . . 4 5 . . 42 10 10 4 13 3 3 10 . . 4 Message Errors 61 | . . . . . 4 4 1 1 13 . . 1 . . 1 2 2 . 3 . . 2 3 . . 9 . 2 1 4 . 1 4 . . 3 Matter Fused 53 | . . . . . 4 5 5 3 11 . . . . 1 . . 1 1 5 . . . . . . 4 3 2 1 3 2 . 1 . . 1 Heat Flow Errors 19 | . . 1 . . . . 2 2 5 . . . . . . 1 . . 2 . . . . . . 3 2 . . . 1 . . . . . Energy Discharges 25 | . . 1 . . 2 1 1 . 7 . . . . 1 . . . . . . . . . . . 7 . 2 1 . . . 2 . . . Parts Rejected 3 | . . . . . . . . . . . . . . . . 1 . . . . . . . . . . . . . . . . 2 . . . Parts Fused 6 | . . . . . . . 1 . 1 . . . . . . . . . 1 . . . . . . 2 . . . 1 . . . . . . Data Loss (minor) 23 | . . . . . 1 2 1 1 2 . . . 1 . . 1 . . 5 . . . 1 . . 1 1 2 1 1 . 2 . . . . Data Loss (major) 11 | . . . . . . 2 . . 2 . . . . 1 . . . . 2 . . . . . . 1 1 1 . 1 . . . . . . Misfires 10 | . . . . . 1 . 1 1 1 . . . 1 . . . 1 . . . . . . . . 2 1 . . . . . 1 . . . Alerts 6 | . . . . . . 1 . . 2 . . . . . . . . . 2 . . . . . . 1 . . . . . . . . . . Weapon Failures 36 | . . . . . 1 1 2 . 1 . . 1 . 1 1 . 2 . 5 . . 2 1 . . 12 2 1 . 3 . . . . . . Overload Shots 25 | . . . . . . . . . . . . . . . . . 1 . . . . 3 . . . . . . . . 3 1 5 . 6 6 Overflow Damage 2174 | . . 48 . . 17 4 170 . . . . 140 . . . . 58 . 70 . . . . 24 . . . . . . . 1643 . . . . Projectiles 113 | . . . . . . . 113 . . . . . . . . . . . . . . . . . . . . . . . . . . . . . Explosions 2055 | . . 48 . . 17 4 51 . . . . 140 . . . . 58 . 70 . . . . 24 . . . . . . . 1643 . . . . Melee 6 | . . . . . . . 6 . . . . . . . . . . . . . . . . . . . . . . . . . . . . . Knockbacks 3 | . . . . . . . 3 . . . . . . . . . . . . . . . . . . . . . . . . . . . . . Impact . | . . . . . . . . . . . . . . . . . . . . . . . . . . . . . . . . . . . . . Kinetic 3 | . . . . . . . 3 . . . . . . . . . . . . . . . . . . . . . . . . . . . . . Secondary . | . . . . . . . . . . . . . . . . . . . . . . . . . . . . . . . . . . . . . Self-Inflicted Damage 442 | . 105 168 . . . . . . . . . . . . . . . . 21 . . . . 148 . . . . . . . . . . . . Shots 13 | . 4 6 . . . . . . . . . . . . . . . . 1 . . . . 2 . . . . . . . . . . . . Rammed . | . . . . . . . . . . . . . . . . . . . . . . . . . . . . . . . . . . . . . Targets Rammed 6 | . . . . . . 1 5 . . . . . . . . . . . . . . . . . . . . . . . . . . . . . Kicked 6 | . . . . . . 1 5 . . . . . . . . . . . . . . . . . . . . . . . . . . . . . Crushed . | . . . . . . . . . . . . . . . . . . . . . . . . . . . . . . . . . . . . . Highest Temperature 440 | . 376 66 22 42 52 12 292 141 245 360 51 116 104 126 104 109 124 . 440 132 274 347 115 135 . 397 223 138 . 80 107 13 142 116 88 72 Average Temperature 63 | . 140 44 6 17 15 9 76 46 73 86 51 55 57 61 48 58 57 . 89 58 89 67 55 59 . 68 80 63 . 45 35 6 38 36 41 33 Received Heat Transfer 3274 | . 48 81 118 6 152 . 189 66 52 252 . 465 4 83 . 16 98 . 347 12 207 148 26 301 . 131 . 35 . 99 12 75 21 91 70 69 Effects 5 | . 3 . . . . . . . . 1 . . . . . . . . . . . . . . . 1 . . . . . . . . . . Energy Bleed 1 | . . . . . . . . . . 1 . . . . . . . . . . . . . . . . . . . . . . . . . . Interference 3 | . 3 . . . . . . . . . . . . . . . . . . . . . . . . . . . . . . . . . . . Matter Decay 1 | . . . . . . . . . . . . . . . . . . . . . . . . . . 1 . . . . . . . . . . Siege Activations . | . . . . . . . . . . . . . . . . . . . . . . . . . . . . . . . . . . . . . Martial Activations . | . . . . . . . . . . . . . . . . . . . . . . . . . . . . . . . . . . . . . Shielding Activations . | . . . . . . . . . . . . . . . . . . . . . . . . . . . . . . . . . . . . . Robots Disrupted . | . . . . . . . . . . . . . . . . . . . . . . . . . . . . . . . . . . . . . Combat Hostiles . | . . . . . . . . . . . . . . . . . . . . . . . . . . . . . . . . . . . . . Robots Corrupted 1 | . . . . . . . 1 . . . . . . . . . . . . . . . . . . . . . . . . . . . . . Combat Hostiles . | . . . . . . . . . . . . . . . . . . . . . . . . . . . . . . . . . . . . . Parts Fried 4 | . . . . . . . 1 . . . . . . . . . . . . . . 3 . . . . . . . . . . . . . . Impact Corruptions 1 | . . . . . . . 1 . . . . . . . . . . . . . . . . . . . . . . . . . . . . . Robots Melted . | . . . . . . . . . . . . . . . . . . . . . . . . . . . . . . . . . . . . . Combat Hostiles . | . . . . . . . . . . . . . . . . . . . . . . . . . . . . . . . . . . . . . Parts Melted 10 | . 1 . . . . 2 . . 2 . . 1 . . . . 1 . . . . . . 2 . . . . . . . . . . . 1 Heat Transferred 4044 | . 700 50 . 100 . 350 50 . . . . 700 . . . . 150 . 650 . . . . 774 . 150 . . . . . 220 . 150 . . Parts Sabotaged . | . . . . . . . . . . . . . . . . . . . . . . . . . . . . . . . . . . . . . Parts Stolen 7 | . . . . . . . . . . . . . . 3 . . . . . . 4 . . . . . . . . . . . . . . . Parts Stripped . | . . . . . . . . . . . . . . . . . . . . . . . . . . . . . . . . . . . . . Power Chain Reactions 4 | . 4 . . . . . . . . . . . . . . . . . . . . . . . . . . . . . . . . . . . Alert | -11 -10 -10 -9 -9 -9 -8 -8 -8 -8 -6 -6 -6 -6 -6 -6 -5 -5 -5 -5 -5 -5 -5 -4 -4 -4 -4 -4 -4 -4 -3 -3 -3 -3 -2 -1 -1 ------- Run | Yrd Mat Min Mat Min Exi Min Mat Sto Rec Fac Was Fac Low Low Dat Pro Fac Was Fac Upp Upp War Pro Fac Was Fac Upp Upp Zhi Pro Res Qua Sec Res Acc Com Maximum Alert Level 5 | . 3 2 4 3 . . 3 2 . 2 . 5 . . . . 3 1 5 . . . . 4 2 5 . . . . 3 5 5 5 5 5 Low Security (%) 35 | 100 60 . 7 . . 100 63 35 100 56 100 23 . . . . 18 . 6 . . . . 7 . . . . . . 18 . . . . . Level 1 16 | . 5 99 42 . . . 5 23 . 31 . 7 . . . . 28 100 11 . . . . 24 . 6 . . . . 62 . . . . . Level 2 16 | . 26 . 30 14 . . 27 41 . 12 . 14 . . . . 40 . 3 . . . . 23 100 29 . . . . 14 45 . . . . Level 3 10 | . 8 . 9 85 . . 3 . . . . 19 . . . . 12 . 10 . . . . 17 . 17 . . . . 4 . 80 . . . Level 4 11 | . . . 10 . . . . . . . . 10 . . . . . . 50 . . . . 26 . 26 . . . . . 39 . 6 8 15 Level 5 2 | . . . . . . . . . . . . . . . . . . . 17 . . . . . . 2 . . . . . 15 . . . 7 High Security 5 | . . . . . . . . . . . . 24 . . . . . . . . . . . . . 17 . . . . . . . . . 76 Max Security 1 | . . . . . . . . . . . . . . . . . . . . . . . . . . . . . . . . . 19 93 91 . Sterilizations 1 | . . . . . . . . . . . . 1 . . . . . . . . . . . . . . . . . . . . . . . . Peak Influence 4384 | . 720 408 1449 883 . 185 822 582 128 521 63 3359 . . . . 898 311 1992 . . . . 1373 485 2900 . . . . 788 1657 1764 2444 2010 4384 Initial 1466 | . . 271 131 563 . . 7 247 8 . 63 . . . . . 97 311 189 . . . . 63 485 339 . . . . 327 434 872 1100 1466 1286 Average 641 | . 281 364 542 780 . 57 212 308 18 211 17 1025 . . . . 439 294 1175 . . . . 684 485 1132 . . . . 340 1049 1037 1974 1819 2991 Influence Increases 40259 | . 1019 290 2270 476 1525 281 1607 590 254 1430 . 4639 330 415 . 315 1439 . 2499 430 495 3940 395 1905 . 3511 90 485 . 665 1637 1805 768 844 410 3500 Destroy 0b10 Robot/C 24360 | . 200 100 700 340 1360 60 1000 360 60 920 . 2940 300 380 . 260 800 . 1420 400 340 3260 360 880 . 2360 80 440 . 600 1060 580 200 480 220 1900 Destroy 0b10 Robot/NC 1740 | . 55 5 110 . . 20 180 30 70 95 . 275 . 5 . 15 125 . 135 . 5 50 15 45 . 210 . 5 . 5 150 45 30 25 . 35 Destroy Leader 3722 | . 50 20 222 50 . 10 250 110 . 236 . 602 30 30 . 40 202 . 316 30 30 . 20 182 . 494 10 40 . 60 240 98 38 52 10 250 Allied During Kill 1102 | . . 3 6 . . . . . . . . . . . . . . . 1 . . . . . . . . . . . 21 . 44 134 57 836 Trap Triggered on 0b10 120 | . . . . . . . . . . . . . . . . . . . 100 . . . . . . . . . . . 10 10 . . . . Successful Hack 660 | . 6 . 23 6 . . 25 13 4 40 . 87 . . . . 57 . 93 . . . . 71 . 84 . . . . 51 44 48 . . 8 Disable Machine 3240 | . 435 90 750 30 . 150 60 30 120 . . 330 . . . . 150 . 210 . . . . 195 . 135 . . . . . 270 165 15 90 15 Anti-Garrison Action 200 | . . . . . . . . . . . . . . . . . . . . . . . . 150 . . . . . . . . . . . 50 Destroy Structure 2670 | . 273 72 414 20 . 41 47 2 . 4 . 75 . . . . 60 . 134 . . . . 202 . 108 . . . . 30 608 48 138 33 361 Partial Spotted 510 | . . . 15 15 . . . . . 105 . 75 . . . . 15 . 45 . . . . 30 . 60 . . . . . 30 75 . . 45 Lose Combat Pursuer 1935 | . . . 30 15 165 . 45 45 . 30 . 255 . . . . 30 . 45 . 120 630 . 150 . 60 . . . . 75 120 120 . . . Influence Decreases 37099 | . 323 647 1164 1136 1137 1433 1042 1153 277 1249 181 1280 1384 689 2031 160 704 619 802 919 520 1975 3713 618 903 1096 1213 498 1764 180 1350 1026 1019 772 978 1144 Entered New Map 22187 | . . 425 208 882 785 1173 14 339 15 . 118 . 1244 439 2031 . 58 579 82 729 282 1454 3419 38 903 146 1073 338 1764 . 158 338 679 772 978 724 Time Decay 9208 | . 313 222 506 254 332 260 578 214 262 625 63 510 140 230 . 160 326 40 670 180 238 501 294 270 . 490 140 160 . 180 422 368 190 . . 70 Lost Part 80 | . . . . . 20 . . . . . . . . 20 . . 20 . . . . . . . . . . . . . . 10 . . . 10 Lost Ally 540 | . 10 . . . . . . . . 40 . 20 . . . . . . 50 10 . 20 . 10 . 10 . . . . 20 10 . . . 340 Purge Threat 5084 | . . . 450 . . . 450 600 . 584 . 750 . . . . 300 . . . . . . 300 . 450 . . . . 750 300 150 . . . Squads Dispatched 240 | . 1 . 5 . . . 13 5 . 13 . 44 . . . . 13 . 16 . . . 1 11 . 26 . . . 1 15 10 17 13 15 21 Investigation 50 | . 1 . 4 . . . 8 2 . 3 . 9 . . . . 5 . 1 . . . . 3 . 4 . . . 1 3 1 3 . . 2 Extermination 31 | . . . . . . . . . . 4 . 5 . . . . 2 . 6 . . . . 2 . 3 . . . . 4 3 1 . . 1 Reinforcement 53 | . . . 1 . . . 4 . . 6 . 11 . . . . 5 . 4 . . . . 2 . 3 . . . . 5 . 5 . 3 4 Assault 90 | . . . . . . . 1 . . . . 15 . . . . . . 4 . . . 1 2 . 15 . . . . 1 5 8 12 12 14 Garrison 16 | . . . . . . . . 3 . . . 4 . . . . 1 . 1 . . . . 2 . 1 . . . . 2 1 . 1 . . Intercept . | . . . . . . . . . . . . . . . . . . . . . . . . . . . . . . . . . . . . . Searches Triggered . | . . . . . . . . . . . . . . . . . . . . . . . . . . . . . . . . . . . . . Unchained Authorized 7 | . . . . . . . . . . . . 1 . . . . 1 . 1 . . . . 1 . 2 . . . . 1 . . . . . Construction Impeded 4 | . . . . . . . 1 . . 1 . 1 . . . . . . . . . . . . . . . . . . 1 . . . . . Haulers Reinforced 16 | . . . . . . . . . . 1 . 3 . . . . 4 . 2 . . . . . . 1 . . . . 2 . . . 3 . Active Scanning Responses . | . . . . . . . . . . . . . . . . . . . . . . . . . . . . . . . . . . . . . Cargo Convoy Interrupts 3 | . . . . . . . . . . 1 . 1 . . . . . . . . . . . . . 1 . . . . . . . . . . Stealth | -11 -10 -10 -9 -9 -9 -8 -8 -8 -8 -6 -6 -6 -6 -6 -6 -5 -5 -5 -5 -5 -5 -5 -4 -4 -4 -4 -4 -4 -4 -3 -3 -3 -3 -2 -1 -1 --------- Run | Yrd Mat Min Mat Min Exi Min Mat Sto Rec Fac Was Fac Low Low Dat Pro Fac Was Fac Upp Upp War Pro Fac Was Fac Upp Upp Zhi Pro Res Qua Sec Res Acc Com Distress Signals 36 | . 2 1 4 . . . 2 1 . 2 . 2 . . . . 2 . 3 . . 1 . 2 . 6 . . . . 2 . . 1 1 4 Communications Jammed . | . . . . . . . . . . . . . . . . . . . . . . . . . . . . . . . . . . . . . Distress Signals . | . . . . . . . . . . . . . . . . . . . . . . . . . . . . . . . . . . . . . Times Spotted 1760 | . 17 15 43 18 80 2 46 27 6 59 . 185 12 23 4 12 55 . 104 14 29 212 17 80 5 188 8 17 . 25 61 32 95 23 65 181 Peak Tracking Total 43 | . 5 7 8 3 23 2 5 7 3 5 . 11 7 8 4 4 12 . 5 5 11 26 6 12 5 20 4 5 . 6 8 10 13 6 24 43 Tactical Retreats 65 | . . 1 1 1 5 . 2 2 . 2 . 8 . . . . 1 . 2 . 4 14 . 4 . 11 . . . . 2 2 3 . . . Traps | -11 -10 -10 -9 -9 -9 -8 -8 -8 -8 -6 -6 -6 -6 -6 -6 -5 -5 -5 -5 -5 -5 -5 -4 -4 -4 -4 -4 -4 -4 -3 -3 -3 -3 -2 -1 -1 ------- Run | Yrd Mat Min Mat Min Exi Min Mat Sto Rec Fac Was Fac Low Low Dat Pro Fac Was Fac Upp Upp War Pro Fac Was Fac Upp Upp Zhi Pro Res Qua Sec Res Acc Com Traps Triggered 34 | . . . . . . . 3 . . 4 . 4 . . . . 2 . 1 . . 5 . 3 . 3 . . . . . . 1 1 1 6 Indirectly . | . . . . . . . . . . . . . . . . . . . . . . . . . . . . . . . . . . . . . Trap Hack Attempts 378 | . . . . . . . . 15 . . . . . . . . . . 213 . . 24 . . . 41 . . . . 77 8 . . . . Triggered 2 | . . . . . . . . . . . . . . . . . . . 2 . . . . . . . . . . . . . . . . . Disarmed 26 | . . . . . . . . 4 . . . . . . . . . . 14 . . . . . . 6 . . . . 2 . . . . . Reprogrammed 52 | . . . . . . . . . . . . . . . . . . . 23 . . 1 . . . 6 . . . . 21 1 . . . . Reused 21 | . . . . . . . . . . . . . . . . . . . 18 . . 1 . . . . . . . . 1 1 . . . . Traps Extracted . | . . . . . . . . . . . . . . . . . . . . . . . . . . . . . . . . . . . . . Installed . | . . . . . . . . . . . . . . . . . . . . . . . . . . . . . . . . . . . . . Triggered 13 | . . . . . . . . . . . . . . . . . . . 10 . . 1 . . . . . . . . 1 1 . . . . Machines | -11 -10 -10 -9 -9 -9 -8 -8 -8 -8 -6 -6 -6 -6 -6 -6 -5 -5 -5 -5 -5 -5 -5 -4 -4 -4 -4 -4 -4 -4 -3 -3 -3 -3 -2 -1 -1 ---------- Run | Yrd Mat Min Mat Min Exi Min Mat Sto Rec Fac Was Fac Low Low Dat Pro Fac Was Fac Upp Upp War Pro Fac Was Fac Upp Upp Zhi Pro Res Qua Sec Res Acc Com Machines Disabled 225 | . 29 6 50 2 . 10 4 2 9 . . 22 . . 1 . 10 . 14 1 . 2 . 14 . 9 . . . . . 18 12 1 6 3 Max in Single Turn 12 | . 2 2 3 1 . 6 2 1 2 . . 12 . . 1 . 8 . 5 1 . 1 . 6 . 2 . . . . . 10 1 . 1 2 Garrison Access 19 | . . . . . . . . . . 2 . 3 . . . . . . 3 . . . . 3 . 4 . . . . 3 1 . . . . Phase Generator 1 | . . . . . . . . . . . . . . . . . . . . . . . . . . . . . . . . . . . . 1 Machines Repaired . | . . . . . . . . . . . . . . . . . . . . . . . . . . . . . . . . . . . . . Machines Dismantled . | . . . . . . . . . . . . . . . . . . . . . . . . . . . . . . . . . . . . . Machines Sabotaged . | . . . . . . . . . . . . . . . . . . . . . . . . . . . . . . . . . . . . . Overloaded Fab Kills . | . . . . . . . . . . . . . . . . . . . . . . . . . . . . . . . . . . . . . Hacking | -11 -10 -10 -9 -9 -9 -8 -8 -8 -8 -6 -6 -6 -6 -6 -6 -5 -5 -5 -5 -5 -5 -5 -4 -4 -4 -4 -4 -4 -4 -3 -3 -3 -3 -2 -1 -1 --------- Run | Yrd Mat Min Mat Min Exi Min Mat Sto Rec Fac Was Fac Low Low Dat Pro Fac Was Fac Upp Upp War Pro Fac Was Fac Upp Upp Zhi Pro Res Qua Sec Res Acc Com Machines Accessed 268 | . 8 1 15 1 5 . 13 15 13 21 . 28 1 2 3 1 14 . 28 1 1 4 . 10 . 24 2 1 8 1 15 15 13 . . 4 Terminals 164 | . 7 . 11 1 . . 9 12 6 17 . 12 . 1 . 1 10 . 15 . 1 . . 5 . 13 1 . . 1 11 13 13 . . 4 Fabricators 13 | . . . . . . . . . . . . 6 . . . . 1 . 2 . . . . 1 . 3 . . . . . . . . . . Repair Stations . | . . . . . . . . . . . . . . . . . . . . . . . . . . . . . . . . . . . . . Recycling Units 33 | . 1 . 2 . . . 2 2 5 2 . 6 . . . . 2 . 7 . . . . . . 3 . . . . 1 . . . . . Scanalyzers 8 | . . . 2 . . . 2 . . . . 1 . . . . . . . . . . . 1 . 1 . . . . . 1 . . . . Garrison Access 22 | . . . . . . . . 1 . 2 . 3 . . . . 1 . 4 . . . . 3 . 4 . . . . 3 1 . . . . Total Hacks 960 | . 25 1 39 3 50 . 51 40 65 77 . 95 1 6 14 2 60 . 102 1 8 11 . 38 . 77 2 1 41 6 54 40 40 . . 10 Successful 652 | . 14 1 27 1 50 . 34 27 56 59 . 64 1 6 14 2 31 . 62 1 8 11 . 22 . 38 2 1 41 6 32 26 14 . . 1 Failed 299 | . 11 . 11 2 . . 16 13 8 16 . 31 . . . . 29 . 38 . . . . 16 . 37 . . . . 22 14 26 . . 9 Catastrophic 33 | . . . 2 . . . 2 1 . 1 . 4 . . . . 3 . 5 . . . . 1 . 3 . . . . 3 . 4 . . 4 Database Lockouts 9 | . . . 1 . . . 1 . 1 2 . . . . . . . . 2 . . . . . . 2 . . . . . . . . . . Manual 378 | . 16 . 19 3 2 . 27 28 14 40 . 37 . . . . 33 . 41 . . 2 . 21 . 37 . . . . 23 20 12 . . 3 Terminals 640 | . 22 . 33 3 . . 42 30 27 69 . 57 . 5 . 2 48 . 69 . 8 . . 28 . 55 1 . . 6 48 37 40 . . 10 Fabricators 30 | . . . . . . . . . . . . 14 . . . . 2 . 5 . . . . 2 . 7 . . . . . . . . . . Repair Stations . | . . . . . . . . . . . . . . . . . . . . . . . . . . . . . . . . . . . . . Recycling Units 87 | . 3 . 4 . . . 3 5 12 4 . 19 . . . . 7 . 20 . . . . . . 7 . . . . 3 . . . . . Scanalyzers 15 | . . . 2 . . . 6 . . . . 2 . . . . . . . . . . . 2 . 1 . . . . . 2 . . . . Garrison Access 40 | . . . . . . . . 5 . 4 . 3 . . . . 3 . 8 . . . . 6 . 7 . . . . 3 1 . . . . Terminal Hacks 406 | . 5 1 12 1 50 . 17 13 39 35 . 28 1 6 14 2 15 . 26 1 8 11 . 12 . 13 2 1 41 6 18 18 9 . . 1 Record 215 | . . . . . 49 . 1 . 32 12 . 7 . 5 11 2 5 . 15 1 8 10 . . . 6 1 . 36 6 2 6 . . . . Part Schematic 5 | . . . . . . . 1 . . 1 . 3 . . . . . . . . . . . . . . . . . . . . . . . . Robot Schematic 1 | . . . . . . . . . . 1 . . . . . . . . . . . . . . . . . . . . . . . . . . Robot Analysis 16 | . 3 . . . . . 2 . 2 2 . 4 . . . . 1 . . . . . . . . 1 . . 1 . . . . . . . Prototype ID Bank 13 | . . . . . . . . . 1 2 . 1 . . 3 . . . . . . . . 1 . . . . 4 . . 1 . . . . Open Door 15 | . . 1 . . . . . 4 . 1 . . 1 1 . . . . . . . 1 . . . . 1 1 . . . 2 2 . . . Level Access Points 5 | . . . 1 . . . 1 . . . . . . . . . . . 1 . . . . . . . . . . . 1 . 1 . . . Branch Access Points 11 | . . . 1 1 . . 2 . . 1 . 1 . . . . 1 . 1 . . . . 1 . . . . . . 1 . 1 . . . Emergency Access Points 1 | . . . . . . . . . . . . . . . . . . . . . . . . . . 1 . . . . . . . . . . Terminal Index 12 | . . . . . . . 1 1 1 1 . 1 . . . . 2 . 1 . . . . . . 1 . . . . 1 1 1 . . . Fabricator Index 4 | . . . . . . . . . . 1 . . . . . . . . 1 . . . . 1 . . . . . . 1 . . . . . Scanalyzer Index 2 | . . . . . . . . . . 1 . . . . . . . . 1 . . . . . . . . . . . . . . . . . Garrison Index 5 | . . . . . . . . . . 2 . . . . . . . . 1 . . . . 1 . . . . . . . 1 . . . . Alert Level 25 | . . . 3 . . . 2 3 1 3 . 3 . . . . 1 . 2 . . . . 2 . . . . . . 4 . 1 . . . Unreport Threat 35 | . . . 3 . . . 3 4 . 5 . 5 . . . . 2 . . . . . . 2 . 3 . . . . 5 2 1 . . . Locate Traps 7 | . . . 2 . . . 1 1 . . . 1 . . . . . . . . . . . . . 1 . . . . . 1 . . . . Dispatch Records 2 | . . . . . . . 1 . . . . . . . . . . . . . . . . 1 . . . . . . . . . . . . Security Status 1 | . . . . . . . . . . . . . . . . . . . . . . . . . . . . . . . 1 . . . . . Surveillance Status 1 | . . . . . . . . . . . . . . . . . . . . . . . . 1 . . . . . . . . . . . . Patrol Status 1 | . . . . . . . 1 . . . . . . . . . . . . . . . . . . . . . . . . . . . . . Extermination Status 1 | . . . . . . . . . . . . . . . . . 1 . . . . . . . . . . . . . . . . . . . Assault Status 1 | . . . . . . . . . . . . . . . . . . . . . . . . . . . . . . . 1 . . . . . Recall Investigation 3 | . . . . . . . . . . . . 1 . . . . . . . . . . . . . . . . . . . 1 1 . . . Recall Reinforcements 2 | . . . . . . . . . . . . . . . . . . . 1 . . . . . . . . . . . . 1 . . . . Hauler Manifests 3 | . 1 . . . . . 1 . . . . . . . . . . . . . . . . . . . . . . . 1 . . . . . Registered Components 7 | . 1 . . . . . . . . 1 . 1 . . . . 1 . 1 . . . . 1 . . . . . . . 1 . . . . Registered Prototypes 6 | . . . 1 . . . . . . 1 . . . . . . 1 . 1 . . . . 1 . . . . . . . 1 . . . . Zone Layout 1 | . . . 1 . . . . . . . . . . . . . . . . . . . . . . . . . . . . . . . . . Proto ID Catalog 1 | . . . . . 1 . . . . . . . . . . . . . . . . . . . . . . . . . . . . . . . Activate Exoskeleton 1 | . . . . . . . . . . . . . . . . . . . . . . . . . . . . . . . . . 1 . . . Disengage Seal 1 | . . . . . . . . . . . . . . . . . . . . . . . . . . . . . . . . . . . . 1 Release Object 2 | . . . . . . . . . 2 . . . . . . . . . . . . . . . . . . . . . . . . . . . Fabricator Hacks 24 | . . . . . . . . . . . . 10 . . . . 2 . 5 . . . . 2 . 5 . . . . . . . . . . Network Status 6 | . . . . . . . . . . . . 1 . . . . . . 4 . . . . . . 1 . . . . . . . . . . Load Schematic 9 | . . . . . . . . . . . . 5 . . . . 1 . . . . . . 1 . 2 . . . . . . . . . . Build 9 | . . . . . . . . . . . . 4 . . . . 1 . 1 . . . . 1 . 2 . . . . . . . . . . Repair Station Hacks . | . . . . . . . . . . . . . . . . . . . . . . . . . . . . . . . . . . . . . Recycling Unit Hacks 35 | . 1 . 2 . . . 2 2 5 2 . 8 . . . . 2 . 7 . . . . . . 3 . . . . 1 . . . . . Process 1 | . . . . . . . . . . . . 1 . . . . . . . . . . . . . . . . . . . . . . . . Report Inventory 1 | . . . . . . . . . . . . 1 . . . . . . . . . . . . . . . . . . . . . . . . Retrieve Matter 1 | . . . . . . . . . . . . 1 . . . . . . . . . . . . . . . . . . . . . . . . Retrieve Components 32 | . 1 . 2 . . . 2 2 5 2 . 5 . . . . 2 . 7 . . . . . . 3 . . . . 1 . . . . . Scanalyzer 12 | . . . 1 . . . 5 . . . . 2 . . . . . . . . . . . 2 . 1 . . . . . 1 . . . . Insert Component 3 | . . . . . . . 2 . . . . 1 . . . . . . . . . . . . . . . . . . . . . . . . Analyze 1 | . . . . . . . 1 . . . . . . . . . . . . . . . . . . . . . . . . . . . . . Retrieve Study 8 | . . . 1 . . . 2 . . . . 1 . . . . . . . . . . . 2 . 1 . . . . . 1 . . . . Garrison Access Hacks 19 | . . . . . . . . 1 . 2 . 3 . . . . . . 3 . . . . 2 . 4 . . . . 3 1 . . . . Seal Access 18 | . . . . . . . . . . 2 . 3 . . . . . . 3 . . . . 2 . 4 . . . . 3 1 . . . . Coupler Status 1 | . . . . . . . . 1 . . . . . . . . . . . . . . . . . . . . . . . . . . . . Unauthorized Hacks 153 | . 7 . 12 . . . 8 11 12 20 . 13 . . . . 12 . 21 . . . . 4 . 12 . . . . 10 6 5 . . . Terminals 125 | . 6 . 10 . . . 8 6 7 18 . 8 . . . . 12 . 16 . . . . 4 . 10 . . . . 9 6 5 . . . Assimilate 33 | . 1 . 1 . . . . 1 . 6 . 3 . . . . 4 . 8 . . . . 2 . 2 . . . . 2 3 . . . . Botnet 79 | . 4 . 8 . . . 7 4 6 11 . 5 . . . . 7 . 7 . . . . 2 . 6 . . . . 6 2 4 . . . Operators 13 | . 1 . 1 . . . 1 1 1 1 . . . . . . 1 . 1 . . . . . . 2 . . . . 1 1 1 . . . Fabricators . | . . . . . . . . . . . . . . . . . . . . . . . . . . . . . . . . . . . . . Repair Stations . | . . . . . . . . . . . . . . . . . . . . . . . . . . . . . . . . . . . . . Recycling Units 25 | . 1 . 2 . . . . 2 5 2 . 5 . . . . . . 5 . . . . . . 2 . . . . 1 . . . . . Reject 25 | . 1 . 2 . . . . 2 5 2 . 5 . . . . . . 5 . . . . . . 2 . . . . 1 . . . . . Scanalyzers . | . . . . . . . . . . . . . . . . . . . . . . . . . . . . . . . . . . . . . Garrison Access 3 | . . . . . . . . 3 . . . . . . . . . . . . . . . . . . . . . . . . . . . . Broadcast 1 | . . . . . . . . 1 . . . . . . . . . . . . . . . . . . . . . . . . . . . . Redirect 1 | . . . . . . . . 1 . . . . . . . . . . . . . . . . . . . . . . . . . . . . Watchers 1 | . . . . . . . . 1 . . . . . . . . . . . . . . . . . . . . . . . . . . . . Data Cores Recovered 2 | . . . . . . . . . . . . . . . . . . . . . . . . 1 . . . . . . . 1 . . . . Used 1 | . . . . . . . . . . . . . . . . . . . . . . . . . . . . . . . . 1 . . . . Hacking Detections 179 | . 7 . 13 1 . . 10 12 8 16 . 22 . 1 . . 13 . 15 . 1 . . 8 . 17 . . . 1 11 9 10 . . 4 Full Trace Events 54 | . 3 . 5 . . . 9 3 . 3 . 9 . . . . 5 . 1 . . . . 2 . 4 . . . 1 3 1 3 . . 2 Feedback Events 8 | . 1 . . . . . 1 . . . . . . . . . 3 . . . . . . . . . . . . . 1 1 1 . . . Corruption 5 | . 1 . . . . . 1 . . . . . . . . . 1 . . . . . . . . . . . . . 1 . 1 . . . Hackware Fried 3 | . . . . . . . . . . . . . . . . . 2 . . . . . . . . . . . . . . 1 . . . . Feedback Blocked . | . . . . . . . . . . . . . . . . . . . . . . . . . . . . . . . . . . . . . Robot Schematics Acquired 54 | . . . . . . . . . . 1 . . . . . . 53 . . . . . . . . . . . . . . . . . . . Robots Built 1 | . . . . . . . . . . . . . . . . . . . . . . . . . . 1 . . . . . . . . . . Authchips . | . . . . . . . . . . . . . . . . . . . . . . . . . . . . . . . . . . . . . Time 93 | . . . . . . . . . . . . . . . . . . . . . . . . . . 93 . . . . . . . . . . Total Robot Build Rating 7 | . . . . . . . . . . . . . . . . . . . . . . . . . . 7 . . . . . . . . . . Part Schematics Acquired 9 | . . . . . . . 2 . . 1 . 3 . . . . . . . . . . . . . . . . . . . 3 . . . . Parts Built 10 | . . . . . . . . . . . . 6 . . . . 1 . 2 . . . . . . 1 . . . . . . . . . . Authchips . | . . . . . . . . . . . . . . . . . . . . . . . . . . . . . . . . . . . . . Time 863 | . . . . . . . . . . . . 445 . . . . 116 . 128 . . . . 116 . 58 . . . . . . . . . . Total Part Build Rating 54 | . . . . . . . . . . . . 32 . . . . 3 . 16 . . . . . . 3 . . . . . . . . . . Part Studies Acquired 8 | . . . 1 . . . 2 . . . . 1 . . . . . . . . . . . 2 . 1 . . . . . 1 . . . . Parts Repaired . | . . . . . . . . . . . . . . . . . . . . . . . . . . . . . . . . . . . . . Time . | . . . . . . . . . . . . . . . . . . . . . . . . . . . . . . . . . . . . . Parts Recycled . | . . . . . . . . . . . . . . . . . . . . . . . . . . . . . . . . . . . . . Recycled Matter 293 | . . . . . . . . . . . . 293 . . . . . . . . . . . . . . . . . . . . . . . . Retrieved Matter 81 | . . . . . . . . . . . . 81 . . . . . . . . . . . . . . . . . . . . . . . . Retrieved Components 138 | . . . 19 . . . 20 4 5 12 . 24 . . . . . . 43 . . . . . . 9 . . . . 2 . . . . . Parts Scanalyzed 1 | . . . . . . . 1 . . . . . . . . . . . . . . . . . . . . . . . . . . . . . Part Schematics Acquired 1 | . . . . . . . 1 . . . . . . . . . . . . . . . . . . . . . . . . . . . . . Parts Damaged . | . . . . . . . . . . . . . . . . . . . . . . . . . . . . . . . . . . . . . Bothacking | -11 -10 -10 -9 -9 -9 -8 -8 -8 -8 -6 -6 -6 -6 -6 -6 -5 -5 -5 -5 -5 -5 -5 -4 -4 -4 -4 -4 -4 -4 -3 -3 -3 -3 -2 -1 -1 ------------ Run | Yrd Mat Min Mat Min Exi Min Mat Sto Rec Fac Was Fac Low Low Dat Pro Fac Was Fac Upp Upp War Pro Fac Was Fac Upp Upp Zhi Pro Res Qua Sec Res Acc Com Used RIF Installer . | . . . . . . . . . . . . . . . . . . . . . . . . . . . . . . . . . . . . . Robots Hacked 50 | . 5 . . . . . . 1 . . . 4 . . 1 1 4 . 12 . . 1 3 1 . . . . . . 4 9 3 . . 1 Non-combat 35 | . 5 . . . . . . . . . . 2 . . . 1 3 . 11 . . . 2 1 . . . . . . 4 6 . . . . Combat 15 | . . . . . . . . 1 . . . 2 . . 1 . 1 . 1 . . 1 1 . . . . . . . . 3 3 . . 1 Robot Hacks Applied 58 | . 6 . . . . . . 1 . . . 4 . . 1 1 5 . 13 . . 1 3 2 . . . . . . 6 11 3 . . 1 parse_system 33 | . 4 . . . . . . 1 . . . 2 . . 1 1 2 . 4 . . 1 3 . . . . . . . 1 9 3 . . 1 no_distress 17 | . 1 . . . . . . . . . . 2 . . . . 2 . 6 . . . . 1 . . . . . . 4 1 . . . . find_fabricator 3 | . . . . . . . . . . . . . . . . . 1 . . . . . . 1 . . . . . . 1 . . . . . find_recycling 3 | . 1 . . . . . . . . . . . . . . . . . 2 . . . . . . . . . . . . . . . . . check_alert 1 | . . . . . . . . . . . . . . . . . . . 1 . . . . . . . . . . . . . . . . . find_scanalyzer 1 | . . . . . . . . . . . . . . . . . . . . . . . . . . . . . . . . 1 . . . . Manual 1 | . . . . . . . . . . . . . . . . . . . . . . . 1 . . . . . . . . . . . . . Relay Couplers Released 1 | . . . . . . . . . . . . . . . . . . . . . . . . 1 . . . . . . . . . . . . Machine Destruction 1 | . . . . . . . . . . . . . . . . . . . . . . . . 1 . . . . . . . . . . . . Fabnet Peak Effective % . | . . . . . . . . . . . . . . . . . . . . . . . . . . . . . . . . . . . . . Robots Rewired . | . . . . . . . . . . . . . . . . . . . . . . . . . . . . . . . . . . . . . Allies Hacked . | . . . . . . . . . . . . . . . . . . . . . . . . . . . . . . . . . . . . . Hacks Repelled . | . . . . . . . . . . . . . . . . . . . . . . . . . . . . . . . . . . . . . Allies | -11 -10 -10 -9 -9 -9 -8 -8 -8 -8 -6 -6 -6 -6 -6 -6 -5 -5 -5 -5 -5 -5 -5 -4 -4 -4 -4 -4 -4 -4 -3 -3 -3 -3 -2 -1 -1 -------- Run | Yrd Mat Min Mat Min Exi Min Mat Sto Rec Fac Was Fac Low Low Dat Pro Fac Was Fac Upp Upp War Pro Fac Was Fac Upp Upp Zhi Pro Res Qua Sec Res Acc Com Total Allies 55 | . 1 1 . . . . . 1 . 5 . 3 . . . . 2 . 5 . . . 1 2 . 2 . . . . 2 2 1 . . 27 Largest Group 12 | . 1 1 1 . . . . 1 1 3 . 2 . . . . 2 2 4 1 . . 1 2 . 1 1 1 1 1 2 2 1 1 1 12 Highest-Rated Group 1583 | . 10 31 31 . . . . 10 10 76 . 36 . . . . 35 35 71 10 . . 116 19 . 45 45 45 45 45 71 71 1204 1204 1204 1583 Highest-Rated Ally 1204 | . 10 31 31 . . . . 10 10 26 . 26 . . . . 26 26 26 10 . . 116 10 . 45 45 45 45 45 45 45 1204 1204 1204 1204 Total Orders 9 | . . . . . . . . . . . . . . . . . 2 . . . . 1 . . . 2 . . . . 2 2 . . . . STAY 3 | . . . . . . . . . . . . . . . . . 1 . . . . . . . . . . . . . 1 1 . . . . ROAM 2 | . . . . . . . . . . . . . . . . . . . . . . 1 . . . 1 . . . . . . . . . . FOLLOW 4 | . . . . . . . . . . . . . . . . . 1 . . . . . . . . 1 . . . . 1 1 . . . . Ally Attacks 203 | . . . 8 . . . . . . . . . . . . . . . . . . 5 . . . . . . . . . . 12 28 7 143 Total Damage 15238 | . . . 64 . . . . . . . . . . . . . . . . . . 516 . . . . . . . . . . 1102 2579 741 10236 Kills 50 | . . . 1 . . . . . . . . . . . . . . . . . . 1 . . . . . . . . . . 2 11 2 33 Allies Corrupted 6 | . . . . . . . . . . 1 . 2 . . . . . . 1 . . 1 . . . . . . . . . 1 . . . . Allies Melted . | . . . . . . . . . . . . . . . . . . . . . . . . . . . . . . . . . . . . . Intel | -11 -10 -10 -9 -9 -9 -8 -8 -8 -8 -6 -6 -6 -6 -6 -6 -5 -5 -5 -5 -5 -5 -5 -4 -4 -4 -4 -4 -4 -4 -3 -3 -3 -3 -2 -1 -1 ------- Run | Yrd Mat Min Mat Min Exi Min Mat Sto Rec Fac Was Fac Low Low Dat Pro Fac Was Fac Upp Upp War Pro Fac Was Fac Upp Upp Zhi Pro Res Qua Sec Res Acc Com Active Infowar (turns) 24672 | . 756 469 1377 545 1356 1019 2710 410 708 3131 254 2645 298 491 115 322 722 84 2578 361 512 1247 657 598 15 673 251 123 13 230 . . 2 . . . Optics 5 | . . . . . . . . . . . . . . . . . . . . . . 3 . . . . . . . . . . 2 . . . Sensors 2549 | . . 1 . . . . . 168 689 . . . . . . . . . . . . . . 388 15 673 249 123 13 230 . . . . . . Structural 22901 | . 756 468 1377 545 1356 1019 2119 410 708 3131 254 2645 298 491 115 322 722 84 2578 361 512 1244 657 578 15 136 . . . . . . . . . . Machine Analysis 253 | . . . . . . . . . . . . . . . . . . . 253 . . . . . . . . . . . . . . . . . Cloaking 2819 | . . . . . 34 290 2495 . . . . . . . . . . . . . . . . . . . . . . . . . . . . . Jamming 2 | . . . . . . . . . . . . . . . . . . . . . . . . . . . 2 . . . . . . . . . Robot Analysis Total 106 | . 3 . . . . . 2 . 2 2 . 4 . . . . 91 . . . . . . . . 1 . . 1 . . . . . . . Derelict Logs Recovered 22 | . . 2 . 1 . . . . . . . . 3 3 . 3 . . . 2 1 . 2 . . . 2 3 . . . . . . . . Drone Launches 1 | . . . . . . . . . . . . . . . . . . . . . . 1 . . . . . . . . . . . . . . Drone Recoveries . | . . . . . . . . . . . . . . . . . . . . . . . . . . . . . . . . . . . . . Exploration | -11 -10 -10 -9 -9 -9 -8 -8 -8 -8 -6 -6 -6 -6 -6 -6 -5 -5 -5 -5 -5 -5 -5 -4 -4 -4 -4 -4 -4 -4 -3 -3 -3 -3 -2 -1 -1 ------------- Run | Yrd Mat Min Mat Min Exi Min Mat Sto Rec Fac Was Fac Low Low Dat Pro Fac Was Fac Upp Upp War Pro Fac Was Fac Upp Upp Zhi Pro Res Qua Sec Res Acc Com Turns Passed 31475 | 76 948 472 1377 545 1356 1019 2710 442 1757 3136 256 2751 298 491 115 322 724 84 2582 368 512 1936 657 599 15 1562 293 324 120 360 1020 846 484 185 138 595 Spaces Moved 50152 | 58 1350 716 2272 640 1482 624 2480 738 1704 2874 243 5009 983 1492 155 953 1594 219 4074 1007 1417 1856 1023 1314 63 3410 1008 829 304 743 2324 2380 1356 401 318 739 Core 351 | 2 . . . . . . . . 307 40 . . . . . . . . . . . 2 . . . . . . . . . . . . . . Treads 1 | . . . . . . . . . . . . 1 . . . . . . . . . . . . . . . . . . . . . . . . Legs 2288 | 56 97 . . . 386 624 1125 . . . . . . . . . . . . . . . . . . . . . . . . . . . . . Wheels 29 | . 29 . . . . . . . . . . . . . . . . . . . . . . . . . . . . . . . . . . . Hover . | . . . . . . . . . . . . . . . . . . . . . . . . . . . . . . . . . . . . . Flight 47483 | . 1224 716 2272 640 1096 . 1355 738 1397 2834 243 5008 983 1492 155 953 1594 219 4074 1007 1417 1854 1023 1314 63 3410 1008 829 304 743 2324 2380 1356 401 318 739 Fastest Speed 20 | 50 37 37 34 34 34 120 29 29 28 28 30 26 26 26 26 26 26 27 27 28 28 24 24 24 24 24 24 24 24 24 20 20 20 20 20 20 Average Speed 33 | 117 44 37 37 34 57 150 90 29 41 29 30 26 26 26 26 26 26 27 27 28 28 28 24 24 24 24 24 24 25 24 23 20 20 20 20 20 Slowest Speed 225 | 120 120 37 114 34 120 190 225 32 100 100 30 115 26 26 26 26 27 27 103 28 112 150 24 100 24 24 24 24 95 24 24 86 86 20 20 20 Overloaded Moves . | . . . . . . . . . . . . . . . . . . . . . . . . . . . . . . . . . . . . . Propulsion Burnouts . | . . . . . . . . . . . . . . . . . . . . . . . . . . . . . . . . . . . . . Robots Hopped 217 | . 4 1 15 8 . . 6 7 1 17 2 43 . 1 . . 23 . 21 . . 1 . 6 . 18 . . . . 14 7 12 . 1 9 Potential Cave-ins 3 | . . . . . . . . . . . . . . . . . . . . . . 3 . . . . . . . . . . . . . . Cave-ins Triggered . | . . . . . . . . . . . . . . . . . . . . . . . . . . . . . . . . . . . . . Teleports 85 | . . . . . . . . . . . . . . . . . . . . . . . . . . . . . 1 . . . 25 15 12 32 Exploration Rate (%) 78 | 5 98 97 99 99 94 100 98 95 99 67 87 89 98 98 80 98 50 90 73 98 98 97 98 40 69 69 98 95 62 95 56 95 72 12 20 33 Regions Visited 36 Branch Regions 21 Pre-discovered Areas 13 | . . . . 1 1 . . . . . . . 1 1 1 1 . . . . . . . . . . 1 1 3 2 . . . . . . Known Exits Taken 29 | . 1 1 1 1 1 1 1 1 1 . . 1 1 1 1 1 . . 1 1 1 1 1 . . 1 1 1 1 1 1 1 1 1 1 . Unknown Exits Taken 1 | 1 . . . . . . . . . . . . . . . . . . . . . . . . . . . . . . . . . . . . Scrap Searched 27 | . . 1 . 1 . 1 . . . . . . 5 4 . 5 . . . 2 1 . 1 . . . 3 1 . 2 . . . . . . Spaces Dug 148 | . 11 . 88 . . . . . . . . . . . . . . . 9 . . 1 . 8 . 3 . . . . 2 10 8 2 3 3 Terrain Destroyed 2032 | . 319 79 476 20 28 44 47 . . . . 71 . . . . 24 . 83 . . 26 . 115 . 41 . 3 . . 4 552 11 3 5 81 Melee . | . . . . . . . . . . . . . . . . . . . . . . . . . . . . . . . . . . . . . Projectile 111 | . . . . . . . . . . . . . . . . . . . 22 . . 26 . 12 . 3 . 3 . . 4 12 11 3 5 10 AOE 1921 | . 319 79 476 20 28 44 47 . . . . 71 . . . . 24 . 61 . . . . 103 . 38 . . . . . 540 . . . 71 Terrain Rammed . | . . . . . . . . . . . . . . . . . . . . . . . . . . . . . . . . . . . . . Walls Destroyed . | . . . . . . . . . . . . . . . . . . . . . . . . . . . . . . . . . . . . . Machines Disabled . | . . . . . . . . . . . . . . . . . . . . . . . . . . . . . . . . . . . . . Actions | -11 -10 -10 -9 -9 -9 -8 -8 -8 -8 -6 -6 -6 -6 -6 -6 -5 -5 -5 -5 -5 -5 -5 -4 -4 -4 -4 -4 -4 -4 -3 -3 -3 -3 -2 -1 -1 --------- Run | Yrd Mat Min Mat Min Exi Min Mat Sto Rec Fac Was Fac Low Low Dat Pro Fac Was Fac Upp Upp War Pro Fac Was Fac Upp Upp Zhi Pro Res Qua Sec Res Acc Com Total 62357 | 63 1525 875 2565 921 1830 691 2838 909 2722 5064 422 6096 1010 1563 214 1005 1791 242 5350 1069 1506 3041 1412 1496 62 3976 1053 934 343 900 2682 2678 1515 490 378 1126 Wait 7021 | . 41 104 78 263 136 38 143 79 926 1982 176 511 3 2 16 8 37 16 757 3 8 595 348 15 . 183 33 60 15 97 120 115 70 2 12 29 Move 49703 | 57 1341 713 2241 624 1481 623 2467 724 1701 2841 238 4930 982 1489 154 952 1550 218 4031 1006 1416 1853 1022 1302 62 3374 1007 828 303 742 2297 2365 1331 400 315 723 Hop 198 | . 4 1 15 7 . . 6 6 1 16 2 35 . 1 . . 21 . 21 . . 1 . 6 . 17 . . . . 12 7 12 . 1 6 Pick Up 115 | . 2 4 5 2 12 4 15 1 7 3 2 8 1 . 1 1 . 1 2 2 4 15 1 1 . 1 . . . . . 12 . 3 . 5 Fast Attach 172 | 6 5 2 8 . . 1 9 2 1 4 1 21 1 3 2 1 9 . 12 1 3 32 . 2 . 6 1 . 4 1 5 13 8 3 . 5 Attach 46 | . 1 1 1 . 6 1 5 . 3 3 . 3 2 . . . . . . 1 2 5 . . . . . . . . . 10 . 2 . . Detach 51 | . . . . . 3 . 1 1 . 1 . 2 1 . . . 2 . 7 . 1 16 . 2 . . . . 1 . 2 6 3 1 . 1 Swap 231 | . 4 . 15 . 6 . 10 4 8 8 1 10 . 1 . . 9 . 16 . 1 11 . 8 . 21 2 3 6 4 22 35 20 1 . 5 Drop 232 | . 3 5 15 . 12 5 19 3 11 18 1 28 1 2 3 1 7 1 8 2 2 35 1 2 . 8 1 . 2 . 6 18 1 2 . 9 Fire 2792 | . 103 34 150 22 97 14 109 51 43 118 1 357 19 39 19 29 116 3 213 31 32 289 29 111 . 238 7 29 . 35 122 63 48 40 30 151 Melee 72 | . 8 . . . . . . 1 7 . . . . . . . . . 6 . . 1 4 2 . . . . 12 . 7 16 4 2 . 2 Ram . | . . . . . . . . . . . . . . . . . . . . . . . . . . . . . . . . . . . . . Kick 6 | . . . . . . 1 5 . . . . . . . . . . . . . . . . . . . . . . . . . . . . . Crush . | . . . . . . . . . . . . . . . . . . . . . . . . . . . . . . . . . . . . . Escape Stasis 186 | . . . . . . . . . . 12 . 30 . . . . 15 . 15 . . . . . . . . . . . . . . . 15 99 Rewire . | . . . . . . . . . . . . . . . . . . . . . . . . . . . . . . . . . . . . . Trap 378 | . . . . . . . . 15 . . . . . . . . . . 213 . . 24 . . . 41 . . . . 77 8 . . . . Miscellaneous 1154 | . 13 11 37 3 77 4 49 22 14 58 . 161 . 26 19 13 25 3 49 23 37 164 7 45 . 87 2 14 . 21 12 10 18 34 5 91 Route ------- -11/Scrapyard -10/Materials (discovered 4 exits: *Mat x3 / *Min) -10/Mines (discovered 2 exits: *Mat x2) -9/Materials (discovered 4 exits: *Mat x3 / *Min) -9/Mines (discovered 4 exits: *Mat x2 / *Exi / *Zio) -9/Exiles (discovered 2 exits: *Min x2) -8/Mines (discovered 2 exits: *Mat x2) -8/Materials (discovered 4 exits: *Fac x3 / *Sto) -8/Storage (discovered 2 exits: *Fac / *Rec) -8/Recycling -6/Factory (discovered 8 exits: *Fac x4 / *Low x2 / *Ext x2) -6/Waste -6/Factory (discovered 8 exits: *Fac x4 / *Low x2 / *Ext x2) -6/Lower Caves -6/Lower Caves (discovered 2 exits: *Fac / *Dat) -6/Data Miner -5/Proximity Caves -5/Factory (discovered 6 exits: *Fac x4 / *Upp x2) -5/Waste -5/Factory (discovered 6 exits: *Fac x4 / *Upp x2) -5/Upper Caves -5/Upper Caves (discovered 2 exits: *Fac / *War) -5/Warlord -4/Proximity Caves -4/Factory (discovered 3 exits: *Upp x2 / Arm) -4/Waste -4/Factory (discovered 4 exits: *Res / *Upp x2 / *Arm) -4/Upper Caves -4/Upper Caves (discovered 2 exits: *Res / *Zhi) -4/Zhirov -3/Proximity Caves -3/Research (discovered 5 exits: *Res x3 / *Qua x2) -3/Quarantine (discovered 3 exits: *Res / *Sec / *Frg) -3/Section 7 -2/Research (discovered 2 exits: *Acc / *Tes) -1/Access -1/Command Tau Ceti IV Orbit History --------- Turn | Location | Event 1 | -11/Scrapyard | Upgraded with Propulsion slot (x1) 1 | -11/Scrapyard | Upgraded with Utility slot (x1) 1 | -11/Scrapyard | Upgraded with Weapon slot (x2) 17 | -11/Scrapyard | Discovered new exit (range 16) 77 | -11/Scrapyard | Entered Materials 272 | -10/Materials | Discovered new exit (range 13) 340 | -10/Materials | Discovered new exit (range 14) 555 | -10/Materials | Build established: Gunner 574 | -10/Materials | Discovered new exit (range 11) 647 | -10/Materials | Reached level 2 732 | -10/Materials | Discovered new exit (range 16) 858 | -10/Materials | Reached level 3 878 | -10/Materials | Upgraded with Utility slot (x1) 960 | -10/Materials | Identified exit to Materials 972 | -10/Materials | Identified exit to Mines 1025 | -10/Materials | Entered Mines 1041 | -10/Mines | Assembled infested the area 1041 | -10/Mines | Learned location of 2 exits from Materials 1046 | -10/Mines | Assisted by a Guerilla fighting off Assembled 1059 | -10/Mines | Discovered exit to Materials (range 6) 1095 | -10/Mines | Discovered exit to Materials (range 8) 1152 | -10/Mines | Core integrity fell below 50% 1172 | -10/Mines | Destroyed 10 combat bots 1183 | -10/Mines | Reached level 4 1194 | -10/Mines | Received a Mining Laser from a helpful Derelict 1246 | -10/Mines | Met a Derelict who couldn't figure out how to use a Trap Extractor 1291 | -10/Mines | Found a damaged Exp. Sensor Array with a note attached 1292 | -10/Mines | Found Prototype Device 1292 | -10/Mines | Identified Exp. Sensor Array 1335 | -10/Mines | Build established: Scavenger-Gunner 1363 | -10/Mines | Core integrity fell below 20% 1397 | -10/Mines | Learned Materials garrison access intel 1497 | -10/Mines | Entered Materials 1497 | -9/Materials | Accompanied by 1 ally 1498 | -9/Materials | Identified exit to Materials 1499 | -9/Materials | Reached level 5 1599 | -9/Materials | Core integrity fell below 50% 1657 | -9/Materials | Reached level 6 1679 | -9/Materials | Upgraded with Propulsion slot (x1) 1679 | -9/Materials | Upgraded with Utility slot (x1) 1679 | -9/Materials | Upgraded with Weapon slot (x1) 1809 | -9/Materials | Discovered new exit (range 15) 1834 | -9/Materials | Identified exit to Mines 1883 | -9/Materials | Reached level 7 1893 | -9/Materials | Upgraded with Utility slot (x1) 2006 | -9/Materials | Destroyed 10 combat bots 2243 | -9/Materials | Discovered exit to Materials (range 16) 2262 | -9/Materials | Central database locked down 2353 | -9/Materials | Reached level 8 2664 | -9/Materials | Reached level 9 2874 | -9/Materials | Entered Mines 2905 | -9/Mines | Reached level 10 2910 | -9/Mines | Upgraded with Utility slot (x1) 2917 | -9/Mines | Learned Materials stockpile data 2951 | -9/Mines | Met a Derelict bent on vengeance 2991 | -9/Mines | A Derelict revealed a hidden shortcut to a safe place 2996 | -9/Mines | Identified exit to Zion 3003 | -9/Mines | A weapon hastily lodged in a ceiling crevice suddenly fell to the ground 3004 | -9/Mines | Discovered exit to Materials (range 14) 3049 | -9/Mines | Found a hidden stash of uninstalled traps 3332 | -9/Mines | Discovered exit to Materials (range 6) 3334 | -9/Mines | Learned location of Storage (-8) 3405 | -9/Mines | Deemed a non-threat by the Exiles lab entrance 3405 | -9/Mines | Discovered new exit (range 5) 3406 | -9/Mines | Identified exit to Exiles 3419 | -9/Mines | Entered Exiles 3426 | -9/Exiles | Discovered new exit (range 15) 3430 | -9/Exiles | Identified exit to Mines 3439 | -9/Exiles | Met 8R-AWN 3476 | -9/Exiles | Met EX-HEX 3504 | -9/Exiles | Met EX-DEC 3530 | -9/Exiles | Visited The Gauntlet 3584 | -9/Exiles | Met EX-BIN 3619 | -9/Exiles | Aligned with FarCom system 3619 | -9/Exiles | Given EX-Vault access code 3675 | -9/Exiles | Discovered exit to Mines (range 12) 3694 | -9/Exiles | Learned location of Zion (-7) 3714 | -9/Exiles | Opened EX-Vault 3717 | -9/Exiles | Found Superbattery 3728 | -9/Exiles | Warned to stay clear of 0b10 Research branches 3733 | -9/Exiles | Exiles lab attacked by MAIN.C 3816 | -9/Exiles | Destroyed 10 combat bots 3920 | -9/Exiles | Reached level 11 3926 | -9/Exiles | Core integrity fell below 20% 3956 | -9/Exiles | Destroyed 18 combat bots 4032 | -9/Exiles | Destroyed 10 combat bots 4339 | -9/Exiles | Destroyed 11 combat bots 4425 | -9/Exiles | Destroyed 12 combat bots 4523 | -9/Exiles | Found Cloak of Protection 4526 | -9/Exiles | Found AWS/Autocannon 4775 | -9/Exiles | Stole three prototypes: Superbattery, Cloak of Protection, AWS/Autocannon 4775 | -9/Exiles | Entered Mines 4839 | -8/Mines | Discovered exit to Materials (range 4) 4943 | -8/Mines | Discovered exit to Materials (range 8) 5060 | -8/Mines | Build established: Scavenger-Skirmisher 5079 | -8/Mines | Reached level 12 5794 | -8/Mines | Entered Materials 5796 | -8/Materials | Loaded intel: 1 garrison access location 6107 | -8/Materials | Reached level 13 6407 | -8/Materials | Upgraded with Power slot (x1) 6407 | -8/Materials | Upgraded with Propulsion slot (x1) 6432 | -8/Materials | Discovered new exit (range 17) 6564 | -8/Materials | Discovered new exit (range 16) 6760 | -8/Materials | Discovered new exit (range 18) 7010 | -8/Materials | Identified exit to Factory 7052 | -8/Materials | Identified exit to Storage 8194 | -8/Materials | First assault squad dispatched 8195 | -8/Materials | Central database locked down 8251 | -8/Materials | Reached level 14 8504 | -8/Materials | Entered Storage 8506 | -8/Storage | FarCom data flow suspended 8555 | -8/Storage | Garrison activated, responded to threat 8589 | -8/Storage | Discovered exit to Factory (range 18) 8681 | -8/Storage | Met 01-MTF 8704 | -8/Storage | Discovered new exit (range 5) 8705 | -8/Storage | Identified exit to Recycling 8858 | -8/Storage | Destroyed 01-MTF 8861 | -8/Storage | Found 01-MTF's Shockpuncher 8946 | -8/Storage | Entered Recycling 8946 | -8/Recycling | Accompanied by 1 ally 9089 | -8/Recycling | Discovered new exit (range 17) 9095 | -8/Recycling | Identified exit to Factory 9109 | -8/Recycling | Scanned before Scraplab entrance 9121 | -8/Recycling | Discovered new exit (range 11) 9122 | -8/Recycling | Entered Scraplab 9125 | -8/Recycling | Identified exit to Scraptown 9255 | -8/Recycling | Build established: Scavenger-Scout 9596 | -8/Recycling | Reached level 15 9628 | -8/Recycling | Upgraded with Weapon slot (x1) 9659 | -8/Recycling | Angered Scraplab inhabitants 9685 | -8/Recycling | Found Prototype Device 9685 | -8/Recycling | Identified Scrap Engine 10301 | -8/Recycling | Build established: Scavenger-Gunner 10703 | -8/Recycling | Entered Factory 10705 | -6/Factory | Reached level 16 10802 | -6/Factory | Discovered new exit (range 4) 10802 | -6/Factory | Identified exit to Lower Caves 10814 | -6/Factory | Discovered new exit (range 8) 10816 | -6/Factory | Identified exit to Factory 10828 | -6/Factory | Central database locked down 11031 | -6/Factory | Discovered exit to Factory (range 12) 11067 | -6/Factory | Build established: Hacker-Scout 11303 | -6/Factory | Discovered new exit (range 5) 11303 | -6/Factory | Identified exit to Extension 11362 | -6/Factory | Reached level 17 11676 | -6/Factory | Discovered exit to Lower Caves (range 16) 11761 | -6/Factory | Discovered exit to Factory (range 11) 11936 | -6/Factory | Spotted B-75 Beast 12090 | -6/Factory | Cargo convoy interrupted 12126 | -6/Factory | Central database locked down 12129 | -6/Factory | Discovered exit to Extension (range 17) 12163 | -6/Factory | Reached level 18 12434 | -6/Factory | Discovered exit to Factory (range 15) 12477 | -6/Factory | Found Prototype Device 12477 | -6/Factory | Identified Exp. EM Disruption Field 13090 | -6/Factory | Build established: Hacker-Skirmisher 13838 | -6/Factory | Build established: Hacker-Scout 13839 | -6/Factory | Sucked down chute 13839 | -6/Factory | Entered Waste 13839 | -6/Waste | The area was eerily silent 13870 | -6/Waste | Discovered new exit (range 17) 14094 | -6/Waste | Identified exit to Factory 14095 | -6/Waste | Entered Factory 14306 | -6/Factory | Fabricated Cld. Plasma Rifle? 14632 | -6/Factory | Discovered exit to Factory (range 15) 14644 | -6/Factory | Discovered exit to Factory (range 7) 14653 | -6/Factory | Reached level 19 14759 | -6/Factory | Upgraded with Weapon slot (x1) 14960 | -6/Factory | Discovered exit to Extension (range 10) 15046 | -6/Factory | Destroyed 10 combat bots 15145 | -6/Factory | First assault squad dispatched 15172 | -6/Factory | Fabricated Adv. Target Analyzer? 15221 | -6/Factory | Found Prototype Processor 15221 | -6/Factory | Identified Exp. Targeting Computer 15360 | -6/Factory | Unchained authorized (DW-4LL) 15369 | -6/Factory | Fabricated Core Analyzer? 15474 | -6/Factory | Garrison activated, responded to threat 15483 | -6/Factory | Reached level 20 15486 | -6/Factory | Upgraded with Utility slot (x1) 15583 | -6/Factory | Discovered exit to Factory (range 13) 15646 | -6/Factory | DW-4LL burst out of a wall 15726 | -6/Factory | DW-4LL burst out of a wall 15766 | -6/Factory | Destroyed DW-4LL 15780 | -6/Factory | Found DW-4LL's Megashotty 15781 | -6/Factory | Garrison activated, responded to threat 15795 | -6/Factory | Fabricated Cld. Particle Cannon? 15795 | -6/Factory | Found DW-4LL's Griptreads 15824 | -6/Factory | Spotted B-75 Beast 15832 | -6/Factory | Destroyed B-75 Beast 15951 | -6/Factory | Discovered exit to Factory (range 18) 16071 | -6/Factory | Reached level 21 16170 | -6/Factory | High security lockdown imminent 16250 | -6/Factory | High security lockdown engaged 16280 | -6/Factory | Cargo convoy interrupted 16317 | -6/Factory | Found Prototype Processor 16317 | -6/Factory | Identified Exp. Terrain Scan Processor 16329 | -6/Factory | Destroyed 8 combat bots 16396 | -6/Factory | Destroyed 8 combat bots 16472 | -6/Factory | Destroyed 14 combat bots 16587 | -6/Factory | Sterilization system engaged 16587 | -6/Factory | Non-combat units ordered to evacuate 16605 | -6/Factory | Destroyed 18 combat bots 16687 | -6/Factory | Combat units ordered to evacuate 16692 | -6/Factory | Reached level 22 16772 | -6/Factory | Destroyed 23 combat bots 16846 | -6/Factory | Entered Lower Caves 16848 | -6/Lower Caves | Attracted the attention of an 0b10 outpost 16868 | -6/Lower Caves | Identified exit to Lower Caves 16898 | -6/Lower Caves | Destroyed 9 combat bots 16907 | -6/Lower Caves | Learned Factory security intel 16937 | -6/Lower Caves | Encountered a Warlord checkpoint 17144 | -6/Lower Caves | Entered another Lower Caves area 17189 | -6/Lower Caves | Learned 4 Factory zone layouts 17189 | -6/Lower Caves | Discovered exit to Factory (range 13) 17213 | -6/Lower Caves | Attracted the attention of an 0b10 checkpoint 17235 | -6/Lower Caves | Destroyed 11 combat bots 17286 | -6/Lower Caves | Discovered new exit (range 13) 17288 | -6/Lower Caves | Encountered a Master Thief 17288 | -6/Lower Caves | Encountered a Master Thief 17288 | -6/Lower Caves | Encountered a Master Thief 17294 | -6/Lower Caves | Superbattery stolen by Master Thief 17371 | -6/Lower Caves | Encountered a Warlord checkpoint 17447 | -6/Lower Caves | Attracted the attention of an 0b10 base 17495 | -6/Lower Caves | Destroyed 8 combat bots 17496 | -6/Lower Caves | Learned Research trap positions 17496 | -6/Lower Caves | Learned Research stockpile data 17496 | -6/Lower Caves | Learned Factory security intel 17502 | -6/Lower Caves | Learned Factory terminal intel 17633 | -6/Lower Caves | Identified exit to Data Miner 17635 | -6/Lower Caves | Entered Data Miner 17635 | -6/Data Miner | Discovered new exit (range 6) 17639 | -6/Data Miner | Identified exit to Proximity Caves 17643 | -6/Data Miner | Met Data Miner 17654 | -6/Data Miner | Acquired the access code to Warlord's prototype stash 17654 | -6/Data Miner | Learned location of Section 7 (-3) 17659 | -6/Data Miner | Received God Mode back door access code from Data Miner 17664 | -6/Data Miner | Data Conduit disabled 17725 | -6/Data Miner | Found Prototype Device 17725 | -6/Data Miner | Identified Exp. Thermal Shield 17727 | -6/Data Miner | Found Exp. Thermal Shield 17750 | -6/Data Miner | Entered Proximity Caves 17758 | -5/Proximity Caves | Ambushed by research squad 17810 | -5/Proximity Caves | Learned Factory security intel 17883 | -5/Proximity Caves | Destroyed 9 combat bots 17894 | -5/Proximity Caves | Discovered exit to Factory (range 4) 17928 | -5/Proximity Caves | Reached level 23 18017 | -5/Proximity Caves | Learned location of Warlord (-5) 18072 | -5/Proximity Caves | Entered Factory 18073 | -5/Factory | Identified exit to Upper Caves 18074 | -5/Factory | Identified exit to Factory 18076 | -5/Factory | Loaded intel: 25 terminal locations 18134 | -5/Factory | Discovered exit to Factory (range 13) 18178 | -5/Factory | Spotted B-75 Beast 18219 | -5/Factory | Discovered exit to Factory (range 2) 18228 | -5/Factory | Fabricated Enh. Autogun? 18262 | -5/Factory | Hacking Suite fried by hacking feedback 18263 | -5/Factory | Unchained authorized (CL-0N3) 18404 | -5/Factory | System Shield fried by hacking feedback 18408 | -5/Factory | U-05 Engineer reconstituted as Cetus Guard 18408 | -5/Factory | Spotted Cetus Guard 18412 | -5/Factory | Destroyed Cetus Guard 18412 | -5/Factory | Cetus Guard reconstituted as CL-0N3 18445 | -5/Factory | Destroyed CL-0N3 18448 | -5/Factory | Extracted schematics, analyses from CL-0N3's data core 18507 | -5/Factory | Destroyed 13 combat bots 18508 | -5/Factory | Discovered exit to Factory (range 13) 18707 | -5/Factory | Reached level 24 18731 | -5/Factory | Destroyed 7 combat bots 18778 | -5/Factory | Garrison activated, responded to threat 18796 | -5/Factory | Manually triggered Chute Trap 18796 | -5/Factory | Sucked down chute 18796 | -5/Factory | Entered Waste 18796 | -5/Waste | The area was eerily silent 18816 | -5/Waste | 2 allies followed down the chute 18863 | -5/Waste | Discovered new exit (range 13) 18868 | -5/Waste | Identified exit to Factory 18880 | -5/Waste | Entered Factory 18880 | -5/Factory | Accompanied by 2 allies 18886 | -5/Factory | Upgraded with Utility slot (x1) 18967 | -5/Factory | Central database locked down 19032 | -5/Factory | Discovered exit to Factory (range 18) 19127 | -5/Factory | Central database locked down 19172 | -5/Factory | Fabricated Q-thruster? 19240 | -5/Factory | P-70 Sage assimilated allied Technician 6c 19414 | -5/Factory | Destroyed 19 combat bots 19472 | -5/Factory | Discovered exit to Factory (range 18) 19537 | -5/Factory | Destroyed 12 combat bots 19766 | -5/Factory | Destroyed 9 combat bots 20080 | -5/Factory | First assault squad dispatched 20169 | -5/Factory | Unchained authorized (QV-33N) 20238 | -5/Factory | Reached level 25 20836 | -5/Factory | Garrison activated, responded to threat 21117 | -5/Factory | Core integrity fell below 50% 21170 | -5/Factory | Core integrity fell below 20% 21279 | -5/Factory | Discovered exit to Factory (range 18) 21406 | -5/Factory | Spotted B-75 Beast 21462 | -5/Factory | Entered Upper Caves 21462 | -5/Upper Caves | Accompanied by 1 ally 21464 | -5/Upper Caves | Attracted the attention of an 0b10 checkpoint 21545 | -5/Upper Caves | Learned Factory stockpile data 21559 | -5/Upper Caves | Spotted B-75 Beast 21568 | -5/Upper Caves | Destroyed B-75 Beast 21575 | -5/Upper Caves | Learned 8 Factory zone layouts 21599 | -5/Upper Caves | Attracted the attention of an 0b10 outpost 21640 | -5/Upper Caves | Destroyed 15 combat bots 21685 | -5/Upper Caves | Discovered new exit (range 12) 21690 | -5/Upper Caves | Identified exit to Upper Caves 21790 | -5/Upper Caves | Found Alien Artifact 21790 | -5/Upper Caves | Identified Dimensional Node Initializer 21790 | -5/Upper Caves | Initialized slip node 21830 | -5/Upper Caves | Entered another Upper Caves area 21993 | -5/Upper Caves | Encountered a Master Thief 21993 | -5/Upper Caves | Encountered a Master Thief 22020 | -5/Upper Caves | Attracted the attention of an 0b10 base 22030 | -5/Upper Caves | Encountered a Master Thief 22031 | -5/Upper Caves | Encountered a Master Thief 22051 | -5/Upper Caves | Spotted B-75 Beast 22051 | -5/Upper Caves | Discovered exit to Factory (range 7) 22066 | -5/Upper Caves | Q-thruster stolen by Master Thief 22068 | -5/Upper Caves | Q-thruster stolen by Master Thief 22071 | -5/Upper Caves | Graphene Brace stolen by Master Thief 22071 | -5/Upper Caves | Adv. Particle Charger stolen by Master Thief 22125 | -5/Upper Caves | Discovered new exit (range 8) 22127 | -5/Upper Caves | Identified exit to Warlord 22130 | -5/Upper Caves | Learned Factory stockpile data 22181 | -5/Upper Caves | Destroyed B-75 Beast 22234 | -5/Upper Caves | Learned 8 Research zone layouts 22234 | -5/Upper Caves | Learned 6 Lower Caves zone layouts 22234 | -5/Upper Caves | Learned Armory stockpile data 22342 | -5/Upper Caves | Entered Warlord 22354 | -5/Warlord | Discovered new exit (range 9) 22357 | -5/Warlord | Identified exit to Proximity Caves 22390 | -5/Warlord | Attacked by Warlord forces 22392 | -5/Warlord | Spotted DM-J3X(B) 22392 | -5/Warlord | Spotted 6L-MZ2(B) 22461 | -5/Warlord | Destroyed 6L-MZ2(B) 22554 | -5/Warlord | Warlord's base attacked by MAIN.C 22601 | -5/Warlord | Destroyed 12 combat bots 22904 | -5/Warlord | Warlord forces counterattacked 22989 | -5/Warlord | Spotted B-86 Titan 23033 | -5/Warlord | Destroyed B-86 Titan 23070 | -5/Warlord | Spotted Executioner 23075 | -5/Warlord | Spotted Striker 23082 | -5/Warlord | Destroyed Striker 23104 | -5/Warlord | Spotted Executioner 23109 | -5/Warlord | Destroyed Executioner 23116 | -5/Warlord | Found Prototype Processor 23116 | -5/Warlord | Identified Exp. Core Analyzer 23151 | -5/Warlord | Destroyed Executioner 23154 | -5/Warlord | Spotted Executioner 23154 | -5/Warlord | Spotted Striker 23174 | -5/Warlord | Destroyed Striker 23192 | -5/Warlord | Destroyed Executioner 23213 | -5/Warlord | Destroyed 18 combat bots 23229 | -5/Warlord | Warlord base infiltrated, sounded retreat 23275 | -5/Warlord | Found Prototype Device 23275 | -5/Warlord | Identified Wardrone Bay 23293 | -5/Warlord | Spotted OD-SNG(K) 23490 | -5/Warlord | Reached level 26 23526 | -5/Warlord | Found Exp. Core Analyzer 23554 | -5/Warlord | Spotted Executioner 23554 | -5/Warlord | Spotted Executioner 23554 | -5/Warlord | Spotted Executioner 23555 | -5/Warlord | Spotted Striker 23568 | -5/Warlord | Spotted Executioner 23585 | -5/Warlord | Destroyed Executioner 23591 | -5/Warlord | Found Exp. Core Analyzer 23600 | -5/Warlord | Destroyed Executioner 23605 | -5/Warlord | Destroyed Executioner 23618 | -5/Warlord | Found Exp. Targeting Computer 23639 | -5/Warlord | Found Prototype Device 23639 | -5/Warlord | Identified Adv. Kinecellerator 23640 | -5/Warlord | Upgraded with Propulsion slot (x1) 23642 | -5/Warlord | Destroyed 13 combat bots 23702 | -5/Warlord | Spotted Striker 23710 | -5/Warlord | Destroyed Striker 23735 | -5/Warlord | Destroyed 9 combat bots 23741 | -5/Warlord | Spotted Striker 23744 | -5/Warlord | Destroyed Striker 23750 | -5/Warlord | Spotted Striker 23759 | -5/Warlord | Destroyed Striker 23783 | -5/Warlord | Destroyed 11 combat bots 23786 | -5/Warlord | Spotted Striker 23794 | -5/Warlord | Destroyed Striker 23799 | -5/Warlord | Build established: Scavenger-Sprinter 23809 | -5/Warlord | Opened Warlord's prototype stash 23811 | -5/Warlord | Found Prototype Processor 23811 | -5/Warlord | Identified Spectral Analyzer 23813 | -5/Warlord | Found Prototype Device 23813 | -5/Warlord | Identified Exp. Focal Shield 23821 | -5/Warlord | Found Prototype Reactor 23821 | -5/Warlord | Identified Vortex Chain Reactor 23854 | -5/Warlord | Found Prototype Energy Gun 23854 | -5/Warlord | Identified Plasma Storm 23897 | -5/Warlord | Spotted Executioner 23926 | -5/Warlord | Destroyed Executioner 23927 | -5/Warlord | Spotted Striker 23934 | -5/Warlord | Destroyed Striker 23938 | -5/Warlord | Spotted Striker 23939 | -5/Warlord | Spotted Executioner 23957 | -5/Warlord | Destroyed Striker 23977 | -5/Warlord | Destroyed Executioner 23989 | -5/Warlord | Spotted Striker 24006 | -5/Warlord | Destroyed Striker 24013 | -5/Warlord | Destroyed Striker 24021 | -5/Warlord | Spotted Striker 24034 | -5/Warlord | Spotted Striker 24040 | -5/Warlord | Destroyed Striker 24049 | -5/Warlord | Spotted Striker 24050 | -5/Warlord | Destroyed Striker 24072 | -5/Warlord | Destroyed Executioner 24093 | -5/Warlord | Destroyed 53 combat bots 24122 | -5/Warlord | Spotted Executioner 24128 | -5/Warlord | Destroyed Executioner 24174 | -5/Warlord | Spotted Executioner 24181 | -5/Warlord | Destroyed Executioner 24187 | -5/Warlord | Spotted Executioner 24220 | -5/Warlord | Destroyed Executioner 24241 | -5/Warlord | Destroyed 34 combat bots 24278 | -5/Warlord | Entered Proximity Caves 24280 | -4/Proximity Caves | Reached level 27 24300 | -4/Proximity Caves | Learned Research stockpile data 24319 | -4/Proximity Caves | Destroyed 9 combat bots 24387 | -4/Proximity Caves | Attracted the attention of an 0b10 outpost 24423 | -4/Proximity Caves | Discovered exit to Factory (range 6) 24439 | -4/Proximity Caves | Destroyed 13 combat bots 24672 | -4/Proximity Caves | Received a Behemoth hack from an annoying Tinkerer 24851 | -4/Proximity Caves | Spotted B-86 Titan 24853 | -4/Proximity Caves | Befriended a Behemoth using the annoying Tinkerer's hack 24914 | -4/Proximity Caves | Destroyed B-86 Titan 24935 | -4/Proximity Caves | Entered Factory 24936 | -4/Factory | Identified exit to Armory 24973 | -4/Factory | Garrison activated, responded to threat 24999 | -4/Factory | Destroyed 7 combat bots 25062 | -4/Factory | Discovered new exit (range 18) 25094 | -4/Factory | Identified exit to Upper Caves 25113 | -4/Factory | Unchained authorized (QV-33N) 25209 | -4/Factory | Destroyed 8 combat bots 25228 | -4/Factory | Garrison activated, responded to threat 25310 | -4/Factory | Spotted B-86 Titan 25317 | -4/Factory | Reached level 28 25317 | -4/Factory | Destroyed B-86 Titan 25364 | -4/Factory | Destroyed 12 combat bots 25373 | -4/Factory | Build established: Scavenger-Scout 25415 | -4/Factory | Core integrity fell below 50% 25456 | -4/Factory | Destroyed 7 combat bots 25534 | -4/Factory | Sucked down chute 25534 | -4/Factory | Entered Waste 25536 | -4/Waste | Spotted C-40 Crusher 25539 | -4/Waste | Spotted C-40 Crusher 25542 | -4/Waste | Spotted C-40 Crusher 25543 | -4/Waste | Spotted C-40 Crusher 25543 | -4/Waste | Spotted C-40 Crusher 25545 | -4/Waste | Spotted C-40 Crusher 25545 | -4/Waste | Discovered new exit (range 17) 25549 | -4/Waste | Identified exit to Factory 25549 | -4/Waste | Entered Factory 25619 | -4/Factory | Fabricated Enh. Autogun (x1) 25734 | -4/Factory | Discovered new exit (range 6) 25736 | -4/Factory | Identified exit to Research 25863 | -4/Factory | Central database locked down 25886 | -4/Factory | Spotted B-86 Titan 25892 | -4/Factory | Destroyed B-86 Titan 26042 | -4/Factory | Discovered exit to Upper Caves (range 5) 26215 | -4/Factory | Cargo convoy interrupted 26216 | -4/Factory | Spotted Striker 26229 | -4/Factory | Destroyed Striker 26257 | -4/Factory | Destroyed 9 combat bots 26292 | -4/Factory | Spotted B-86 Titan 26297 | -4/Factory | Destroyed B-86 Titan 26299 | -4/Factory | First assault squad dispatched 26362 | -4/Factory | Unchained authorized (GL-D0S) 26370 | -4/Factory | Garrison activated, responded to threat 26401 | -4/Factory | Destroyed 7 combat bots 26418 | -4/Factory | Central database locked down 26437 | -4/Factory | Discovered exit to Upper Caves (range 9) 26733 | -4/Factory | Discovered exit to Armory (range 11) 26780 | -4/Factory | Destroyed 12 combat bots 26804 | -4/Factory | Unchained authorized (GL-D0S) 26841 | -4/Factory | High security lockdown imminent 26921 | -4/Factory | High security lockdown engaged 26927 | -4/Factory | Reached level 29 26955 | -4/Factory | Destroyed 10 combat bots 26980 | -4/Factory | Fabricated O-32 Director? 27026 | -4/Factory | Destroyed 11 combat bots 27111 | -4/Factory | Entered Upper Caves 27111 | -4/Upper Caves | Accompanied by 1 ally 27128 | -4/Upper Caves | Destroyed 20 combat bots 27132 | -4/Upper Caves | Encountered a Warlord checkpoint 27146 | -4/Upper Caves | Learned location of Testing (-2) 27302 | -4/Upper Caves | Learned location of 1 exit from Research 27350 | -4/Upper Caves | Discovered new exit (range 14) 27374 | -4/Upper Caves | Entered an active Warlord outpost 27398 | -4/Upper Caves | Identified exit to Upper Caves 27404 | -4/Upper Caves | Entered another Upper Caves area 27404 | -4/Upper Caves | Accompanied by 1 ally 27404 | -4/Upper Caves | Discovered exit to Research (range 14) 27409 | -4/Upper Caves | Attracted the attention of an 0b10 outpost 27438 | -4/Upper Caves | Learned 4 Research zone layouts 27442 | -4/Upper Caves | Learned 12 Research zone layouts 27451 | -4/Upper Caves | Destroyed 10 combat bots 27520 | -4/Upper Caves | Spotted B-86 Titan 27535 | -4/Upper Caves | Destroyed B-86 Titan 27551 | -4/Upper Caves | Learned location of Armory (-4) 27575 | -4/Upper Caves | Encountered a Warlord checkpoint 27649 | -4/Upper Caves | Discovered new exit (range 13) 27653 | -4/Upper Caves | Identified exit to Zhirov 27678 | -4/Upper Caves | Attracted the attention of an 0b10 checkpoint 27728 | -4/Upper Caves | Entered Zhirov 27728 | -4/Zhirov | Accompanied by 1 ally 27728 | -4/Zhirov | Discovered new exit (range 3) 27749 | -4/Zhirov | Found Alien Artifact 27749 | -4/Zhirov | Identified Transdimensional Reconstructor 27749 | -4/Zhirov | Warped through subspace 27808 | -4/Zhirov | Found Alien Artifact 27808 | -4/Zhirov | Identified Integrated Dissipator 27808 | -4/Zhirov | Installed Integrated Dissipator, increased core heat dissipation (+20) 27821 | -4/Zhirov | Learned location of Quarantine (-3) 27821 | -4/Zhirov | Learned location of Command (-1) 27841 | -4/Zhirov | Identified exit to Proximity Caves 27848 | -4/Zhirov | Entered Proximity Caves 27848 | -3/Proximity Caves | Accompanied by 1 ally 27892 | -3/Proximity Caves | Destroyed 9 combat bots 27897 | -3/Proximity Caves | Learned location of 2 exits from Upper Caves 27897 | -3/Proximity Caves | Learned location of 1 exit from Factory 27899 | -3/Proximity Caves | Attracted the attention of an 0b10 base 27921 | -3/Proximity Caves | Spotted B-86 Titan 27927 | -3/Proximity Caves | Destroyed 7 combat bots 27929 | -3/Proximity Caves | Destroyed B-86 Titan 28038 | -3/Proximity Caves | Attracted the attention of an 0b10 checkpoint 28043 | -3/Proximity Caves | Reached level 30 28056 | -3/Proximity Caves | Discovered exit to Research (range 9) 28064 | -3/Proximity Caves | Destroyed 7 combat bots 28208 | -3/Proximity Caves | Entered Research 28208 | -3/Research | Accompanied by 1 ally 28209 | -3/Research | Identified exit to Quarantine 28210 | -3/Research | Identified exit to Research 28211 | -3/Research | Loaded intel: 49 trap records 28223 | -3/Research | Upgraded with Utility slot (x1) 28321 | -3/Research | Destroyed 7 combat bots 28368 | -3/Research | Discovered exit to Research (range 11) 28421 | -3/Research | Unchained authorized (GL-D0S) 28570 | -3/Research | Build established: Hacker-Scout 28605 | -3/Research | Spotted B-86 Titan 28613 | -3/Research | Destroyed B-86 Titan 28728 | -3/Research | Garrison activated, responded to threat 29085 | -3/Research | Garrison activated, responded to threat 29111 | -3/Research | Destroyed 16 combat bots 29208 | -3/Research | First assault squad dispatched 29228 | -3/Research | Entered Quarantine 29228 | -3/Quarantine | Accompanied by 1 ally 29230 | -3/Quarantine | Reached level 31 29232 | -3/Quarantine | Found Prototype Processor 29232 | -3/Quarantine | Identified Exp. Signal Interpreter 29258 | -3/Quarantine | Found Alien Artifact 29258 | -3/Quarantine | Identified Terrabomb 29258 | -3/Quarantine | Used Terrabomb 29314 | -3/Quarantine | Garrison activated, responded to threat 29345 | -3/Quarantine | Discovered exit to Research (range 17) 29350 | -3/Quarantine | Found Alien Artifact 29350 | -3/Quarantine | Identified Core Reset Matrix 29350 | -3/Quarantine | Used Core Reset Matrix 29352 | -3/Quarantine | Discovered exit to Research (range 5) 29354 | -3/Quarantine | Detected hypermatrix surge 29354 | -3/Quarantine | Sensed 12 artifacts in vicinity 29450 | -3/Quarantine | Destroyed 7 combat bots 29468 | -3/Quarantine | Imp. Hacking Suite fried by hacking feedback 29471 | -3/Quarantine | Spotted Alpha 7 29478 | -3/Quarantine | First assault squad dispatched 29517 | -3/Quarantine | Found Sigix Terminator 29539 | -3/Quarantine | Destroyed Alpha 7 29609 | -3/Quarantine | Fired Sigix Terminator 29628 | -3/Quarantine | Found Subatomic Replicator 29630 | -3/Quarantine | Destroyed 12 combat bots 29769 | -3/Quarantine | Spotted Fortress 29980 | -3/Quarantine | Met incapacitated Sigix Warrior 29980 | -3/Quarantine | Lockdown squad dispatched 29981 | -3/Quarantine | Acquired the access code to the Sigix quarantine chamber 29988 | -3/Quarantine | Found Sigix Containment Pod 29991 | -3/Quarantine | Used Subatomic Replicator to replicate Sigix Containment Pod 30072 | -3/Quarantine | Discovered new exit (range 5) 30072 | -3/Quarantine | Discovered new exit (range 6) 30073 | -3/Quarantine | Identified exit to Section 7 30074 | -3/Quarantine | Identified exit to Protoforge 30074 | -3/Quarantine | Entered Section 7 30075 | -3/Section 7 | Detected hypermatrix surge 30075 | -3/Section 7 | Sensed 20 artifacts in vicinity 30122 | -3/Section 7 | Spotted B-86 Titan 30260 | -3/Section 7 | Spotted S7 Guard 30310 | -3/Section 7 | Found Integrated Thermoelectric Network 30310 | -3/Section 7 | Installed Integrated Thermoelectric Network, gained heat-energy exchange potential 30324 | -3/Section 7 | First assault squad dispatched 30327 | -3/Section 7 | Found Integrated Mediator 30327 | -3/Section 7 | Installed Integrated Mediator, increased core attachment efficiency 30344 | -3/Section 7 | Spotted S7 Guard 30353 | -3/Section 7 | Spotted S7 Guard 30354 | -3/Section 7 | Found Navigation Efficiency Matrix 30354 | -3/Section 7 | Installed Navigation Efficiency Matrix, process failed with unexpected side effects 30439 | -3/Section 7 | Spotted Striker 30439 | -3/Section 7 | Spotted Striker 30442 | -3/Section 7 | Spotted Executioner 30442 | -3/Section 7 | Spotted Executioner 30450 | -3/Section 7 | Reached level 32 30450 | -3/Section 7 | Activated Sigix Exoskeleton 30450 | -3/Section 7 | Received instructions from Sigix Warrior 30456 | -3/Section 7 | Destroyed Executioner 30459 | -3/Section 7 | Destroyed Executioner 30496 | -3/Section 7 | Spotted Executioner 30496 | -3/Section 7 | Spotted Executioner 30558 | -3/Section 7 | Entered Research 30558 | -2/Research | Accompanied by 1 ally (Sigix Warrior) 30580 | -2/Research | Spotted B-90 Cyclops 30616 | -2/Research | Discovered new exit (range 14) 30629 | -2/Research | Identified exit to Testing 30647 | -2/Research | Garrison activated, responded to threat 30681 | -2/Research | Spotted B-90 Cyclops 30685 | -2/Research | Allies destroyed B-90 Cyclops 30710 | -2/Research | Discovered new exit (range 17) 30728 | -2/Research | Identified exit to Access 30737 | -2/Research | Reached level 33 30743 | -2/Research | Entered Access 30743 | -1/Access | Accompanied by 1 ally (Sigix Warrior) 30776 | -1/Access | Reached level 34 30783 | -1/Access | Spotted B-99 Colossus 30787 | -1/Access | Sigix Exoskeleton integrity reduced to 80% 30809 | -1/Access | Destroyed 7 combat bots 30840 | -1/Access | Discovered new exit (range 8) 30874 | -1/Access | Spotted B-99 Colossus 30874 | -1/Access | Spotted B-99 Colossus 30880 | -1/Access | Identified exit to Command 30881 | -1/Access | Entered Command 30881 | -1/Command | Accompanied by 1 ally (Sigix Warrior) 30883 | -1/Command | Reached level 35 30909 | -1/Command | Spotted B-99 Colossus 30922 | -1/Command | Sigix Exoskeleton integrity reduced to 60% 30930 | -1/Command | Destroyed B-99 Colossus 31001 | -1/Command | Core integrity fell below 50% 31014 | -1/Command | Sigix Exoskeleton integrity reduced to 40% 31022 | -1/Command | High security lockdown imminent 31043 | -1/Command | Destroyed 15 combat bots 31052 | -1/Command | Spotted Alpha 7 31052 | -1/Command | Spotted Striker 31052 | -1/Command | Spotted Executioner 31052 | -1/Command | Spotted Executioner 31052 | -1/Command | Spotted Alpha 7 31052 | -1/Command | Spotted Striker 31052 | -1/Command | Spotted Executioner 31052 | -1/Command | Spotted Executioner 31060 | -1/Command | Sigix Exoskeleton integrity reduced to 20% 31066 | -1/Command | Disengaged cave seal 31070 | -1/Command | Destroyed Executioner 31078 | -1/Command | Spotted B-99 Colossus 31083 | -1/Command | Reached level 36 31091 | -1/Command | Destroyed B-99 Colossus 31102 | -1/Command | High security lockdown engaged 31127 | -1/Command | Spotted B-99 Colossus 31130 | -1/Command | Destroyed 11 combat bots 31151 | -1/Command | Phase Generator disabled 31218 | -1/Command | Destroyed B-99 Colossus 31220 | -1/Command | Destroyed Executioner 31242 | -1/Command | Destroyed Alpha 7 31247 | -1/Command | Lost 7 allies 31267 | -1/Command | Spotted Striker 31271 | -1/Command | Destroyed Striker 31305 | -1/Command | Destroyed 13 combat bots 31306 | -1/Command | Spotted Executioner 31306 | -1/Command | Spotted Striker 31306 | -1/Command | Destroyed Executioner 31312 | -1/Command | Spotted Investigator 31317 | -1/Command | Scanned by Researcher 31318 | -1/Command | Destroyed Investigator 31319 | -1/Command | Destroyed Striker 31353 | -1/Command | Destroyed 13 combat bots 31359 | -1/Command | Reached level 37 31368 | -1/Command | Destroyed Executioner 31375 | -1/Command | Destroyed Executioner 31401 | -1/Command | Lost 4 allies 31422 | -1/Command | Discovered new exit (range 7) 31438 | -1/Command | Identified exit to Surface 31476 | *** | Destroyed 0b10! Last Messages --------------- 31460_ Field strength at 94. 31461_ Field strength at 88. 31462_ Field strength at 82. 31463_ Field strength at 76. 31464_ Field strength at 70. 31465_ Field strength at 64. 31466_ Field strength at 58. 31467_ Field strength at 52. 31468_ Field strength at 46. 31469_ Field strength at 40. 31470_ Field strength at 34. 31471_ Field strength at 28. 31472_ Field strength at 22. 31473_ Field strength at 16. 31474_ Field strength at 10. 31475_ Field strength at 4. 31476_ Stasis field depleted. [Achievement: Tester] [Achievement: Travel Light] [Achievement: Overachiever] Map ----- +----------------------------------------------------+ | ?????"" ?# ! #=##!#%**!!![* % " | | ?????"" ?# ]##!##*!*[!%[=/!! [# | | ?????R ??# "* =%[!!=!!][*%== *"## | | ?????"" ???# ! #!=!=!=!%*%*%=!!! !*% != | | ??????" ???# "*"!!! !=!!%!%%!! % *[#"" | | ??????? ????# ""T"" #%g%!==!%!!%=%=%[ !### | | ????????????# """"" " [!!#[#!%%!###! % #?? | | ????????????########### =%% #######?# % !*!#?? | | ?????????????????????##+++!%##???????# !! %#?? | | ?????????????????????#^^[=^ #????????# !%*%### | | ????????????????????##=^^^^%##???????# % [!% %#!! | | ????????????????????#[^^^%^^ #???????########"![## | | ????????????????????##%!*!^^;#??????????????#=%^%% | | ????????????????????#%^ ^=!!#??????????????##%=## | | ????????????????????##^^%%^^;#????????########!"*! | | ????????????????????# ^ ^^^!*#????????# #=!!! | | ????????????????????##^^^!^^;#????????# T #%" | | ????????????????????# ^^ ^^ #????????# a%+ | | ??????????????????####^^^ ^^;###??????# " #%# | | ??????????????????# #??????# # # | | ??????????????????# #??????# # ##" | | ??????????????????# ^ ^ ^ ^ #??????######## ## | | ??????????????????# ^ #????????????# ## | | ??????????????????# ^ #????????????# | | ??????????????????# "" #????????????# ## | | ??????????????????# ^ "@ #?????????#####+## | | ??????????????????# #?????????# # | | ??????????????????# ^ #?????????# # | | ??????????????????# ^ ^^ #?????????# ] # | | ??????????????????# #?????????# # | | ??????????????????# #?????????# = # | | ??????????????????##############?????????# # | | ?????????????????????????????????????????######## | | ????????????????????????????????????????????????## | | ?????????????????????????????????????????????????? | | ?????????????????????????????????????????????????? | | ?????????????????????????????????????????????????? | | ?????????????????????????????????????????????????? | | ?????????????????????????????????????????????????? | | ?????????????????????????????????????????????????? | | ?????????????????????????????????????????????????? | | ?????????????????????????????????????????????????? | | ???????????????Y?????????????????????????????????? | | ?????????????????????????????????????????????????? | | ?????????????????????????????????????????????????? | | ?????????????????????????????????????????????????? | | ?????????????????????????????????????????????????? | | ?????????????????????????????????????????????????? | | ?????????????????????????????????????????????????? | | ?????????????????????????????????????????????????? | +----------------------------------------------------+ Best States ------------- Heat Dissipation 167 Energy Generation 53 Energy Capacity 1915 Matter Stores 500 Matter Capacity 500 Sight Range 25 Robot Scan Range 40 Terrain Scan Density 10 Cloak Strength 5 EM Shielding 4 Corruption Block 15 Resistance: KI 20 Resistance: TH 30 Resistance: EX 25 Point Defense Rating 240 Weapon Cycling 25 Phase Shifting 15 Evasion (%) 90 Targeting Accuracy 12 Target Analysis 8 Core Analysis 12 Particle Charging 30 Kinecelleration 50 Offensive Hacking 41 Defensive Hacking 29 Item Schematics ----------------- Tactical Quantum Warhead | -3/Quarantine | Archive Hvy. Neutron Cannon | -3/Quarantine | Archive Adv. KE Penetrator | -3/Quarantine | Archive Robot Schematics ------------------ None Fabricated ------------ Cld. Plasma Rifle | x1 | -6/Factory Adv. Target Analyzer | x2 | -6/Factory Core Analyzer | x2 | -6/Factory Cld. Particle Cannon | x1 | -6/Factory Enh. Autogun | x1 | -5/Factory Q-thruster | x2 | -5/Factory | Preloaded Enh. Autogun | x1 | -4/Factory O-32 Director | x1 | -4/Factory Repaired ---------- Nothing Studied --------- Mic. Fission Core | -3/Quarantine | Hacked Alien Tech Used ----------------- Dimensional Node Initializer Transdimensional Reconstructor Integrated Dissipator Terrabomb Core Reset Matrix Sigix Terminator Subatomic Replicator Integrated Thermoelectric Network Integrated Mediator Navigation Efficiency Matrix Achievements -------------- Consequences Drive-By Great Explorer Hack The Planet Hard Hitter Morally Flexible Not So Scrappy Overachiever Quick And Dirty Sacrificial Teamwork Scrappetite Sixth Sense Tester Thread The Needle Around The Corner Travel Light Well-fed Force Field Wheee! Woof! Challenges ------------ None RPGLIKE | -11 -10 -10 -9 -9 -9 -8 -8 -8 -8 -6 -6 -6 -6 -6 -6 -5 -5 -5 -5 -5 -5 -5 -4 -4 -4 -4 -4 -4 -4 -3 -3 -3 -3 -2 -1 -1 --------- Run | Yrd Mat Min Mat Min Exi Min Mat Sto Rec Fac Was Fac Low Low Dat Pro Fac Was Fac Upp Upp War Pro Fac Was Fac Upp Upp Zhi Pro Res Qua Sec Res Acc Com Levels Raised 36 | . 2 1 5 1 1 1 2 . 1 3 . 4 . . . 1 1 . 1 . . 1 1 1 . 1 . . . 1 . 1 1 1 1 3 XP Earned 57397 | 3000 3387 1550 8107 1026 1931 924 2868 805 432 5523 97 4936 234 278 73 835 1724 32 1519 289 256 1996 541 1309 22 1580 69 201 39 977 1378 1073 644 1378 1962 4402 XP Spent 53785 | 2650 3320 . 6500 3450 2060 900 3550 . 1400 3030 . 7450 . . . . . . 3100 . . 2920 1050 575 . 1280 . . . . 3200 1250 . 1600 3000 1500 Upgrades 95 | 6 10 . 7 3 6 3 8 . 1 14 . 14 . . . . . . 2 . . 5 1 2 . 4 . . . . 2 1 . 1 3 2 Power Slot 1 | . . . . . . . 1 . . . . . . . . . . . . . . . . . . . . . . . . . . . . . Propulsion Slot 4 | 1 . . 1 . . . 1 . . . . . . . . . . . . . . 1 . . . . . . . . . . . . . . Utility Slot 8 | 1 1 . 2 1 . . . . . . . 1 . . . . . . 1 . . . . . . . . . . . 1 . . . . . Weapon Slot 5 | 2 . . 1 . . . . . 1 . . 1 . . . . . . . . . . . . . . . . . . . . . . . . Core Integrity 4 | . . . . . 4 . . . . . . . . . . . . . . . . . . . . . . . . . . . . . . . Heat Dissipation 16 | . 4 . . . . . 3 . . 3 . . . . . . . . . . . 2 . . . 4 . . . . . . . . . . Energy Generation 4 | . . . . . . 2 . . . . . . . . . . . . . . . 1 1 . . . . . . . . . . . . . Energy Storage 1 | . . . . . . . . . . . . . . . . . . . . . . 1 . . . . . . . . . . . . . . Matter Storage 4 | . . . . . . . . . . . . 4 . . . . . . . . . . . . . . . . . . . . . . . . Mass Support 4 | 1 . . 1 . . . 1 . . . . . . . . . . . . . . . . . . . . . . . . . . 1 . . Inventory Capacity 5 | 1 1 . . 2 . . . . . . . . . . . . . . . . . . . . . . . . . . . 1 . . . . Sight Range 2 | . . . . . . . 2 . . . . . . . . . . . . . . . . . . . . . . . . . . . . . Sensor Range 11 | . . . . . . 1 . . . 8 . . . . . . . . . . . . . 2 . . . . . . . . . . . . Ranged Accuracy 8 | . 3 . 2 . 2 . . . . . . . . . . . . . . . . . . . . . . . . . . . . . 1 . Hack Attack % 3 | . 1 . . . . . . . . 1 . . . . . . . . . . . . . . . . . . . . 1 . . . . . Hack Defense % 3 | . . . . . . . . . . 2 . . . . . . . . 1 . . . . . . . . . . . . . . . . . KI Resistance % 4 | . . . . . . . . . . . . 3 . . . . . . . . . . . . . . . . . . . . . . . 1 TH Resistance % 4 | . . . . . . . . . . . . 3 . . . . . . . . . . . . . . . . . . . . . . . 1 KI Damage % 4 | . . . . . . . . . . . . 2 . . . . . . . . . . . . . . . . . . . . . . 2 . Protomatter Created 21501 | . 112 98 262 339 899 26 765 322 208 614 . 2810 283 488 77 304 596 . 947 349 274 2976 379 842 . 3390 55 479 . 386 953 186 168 472 129 1313 Integrity Restored 23199 | . 253 258 768 44 1689 77 843 398 243 1159 . 3349 . 466 387 209 383 38 871 504 822 3394 86 980 . 1672 18 252 . 420 123 201 403 713 112 2064 Core 18582 | . 243 258 626 44 1689 48 474 338 94 919 . 2593 . 332 305 163 298 28 691 504 822 2401 68 915 . 1217 14 204 . 346 79 201 317 499 93 1759 Parts 4617 | . 10 . 142 . . 29 369 60 149 240 . 756 . 134 82 46 85 10 180 . . 993 18 65 . 455 4 48 . 74 44 . 86 214 19 305 Protomatter Decayed 10927 | . 19 4 75 130 167 . 291 272 87 270 87 941 173 387 . 173 359 . 747 16 . 1807 210 544 . 1922 48 344 . 240 449 68 . 227 121 749 Game ------ Seed CentriumAlertAirjet Manual? 0 Play Time 12:18:00 Cumulative 151.3 hours Start 2025.11.06 @ 22:24:03 End 2025.11.08 @ 20:04:45 Sessions 7 Manual Loads 0 Difficulty Rogue Special Mode Winter2019/RPGLIKE Game No. 53 Rogue 53 Adventurer 0 Explorer 0 Win Type 3 Total 6 Types 2/0/1/3/0/0/0/0/0/0 Lore% 54 Gallery% 51 Achievement% 51 Wizard Run 0 Options --------- Layout 2 ASCII 0 Keyboard 0 Movement Mouse Keybinds 1 Fullscreen 2 Font 20/X11 Map View 64x51 Zoom Use 0% Tactical HUD 1 Map Filters NONE Filters NONE Steam 1 RUN: aabd54b2-c984-4375-8b45-eef0ca79d73a